Cogmind - Beta 15 @@@ ROGUE MODE // 2025.07.29 @ 03:39:31 Player: Skysub Result: Heading to fleet! Performance ------------- Evolutions (9) 4500 Regions Visited (28) 5600 Robots Destroyed (237) 1185 Value Destroyed (8882) 8882 Prototype IDs (86) 1720 Alien Tech Used (12) 2400 Bonus (45018) 45018 TOTAL SCORE: 69305 Bonus ------- Triggered Max Security 2000 High Alert Combat Kills 2166 Follower Combat Kills 3865 Network Hubs Disabled 600 Met Data Miner 300 Met Warlord at Base 500 MAIN.C Attacked Warlord 500 Built Enhanced Grunts 300 Met R17 at Cetus 500 Found Hidden Lab 3000 Used Core Reset Matrix 3000 Met R17 at Research 2000 Met Warlord at Research 2000 Invited to Help at Command 2000 Hacked God Mode 5000 Integrated Exoskeleton 5000 Met MAIN.C 5000 Destroyed MAIN.C Shell 5000 Win 3000 Friendly Fire -713 Cogmind --------- Core Integrity 341/1850 Matter 300/300 Energy 448/450 System Corruption 6% Temperature Cool (0) Movement Walking (30) +NEM 1 Location To Fleet Rendezvous Parts ------- > --- POWER (1) -------- Matter Drive > --- PROPULSION (3) --- Sigix Exoskeleton > --- UTILITY (3) ------ Medium Storage Unit Improved Armor Integrity Analyzer Improved Reaction Control System > --- WEAPON (4) ------- Sigix Sheargun Sigix Sheargun Sigix Sheargun > --- INVENTORY (12) --- Quantum Reactor Experimental Targeting Computer Graphene Brace Advanced Shield Generator Transdimensional Reconstructor Transdimensional Reconstructor Terrabomb Terrabomb Terrabomb Plasma Lance Peak State ------------ > --- POWER ------------ Matter Drive > --- PROPULSION ------- Sigix Exoskeleton > --- UTILITY ---------- Medium Storage Unit Experimental Core Analyzer Improved Armor Integrity Analyzer > --- WEAPON ----------- Sigix Sheargun Sigix Sheargun Sigix Sheargun Sigix Sheargun > --- INVENTORY -------- Light Particle Reactor Experimental Targeting Computer Experimental Core Analyzer Improved Reaction Control System Graphene Brace Advanced Shield Generator Transdimensional Reconstructor Transdimensional Reconstructor Terrabomb Terrabomb Terrabomb Plasma Lance [Rating: 250] Favorites ----------- Power Light Ion Engine Engine Light Ion Engine Power Core Light Fission Core Reactor Micro Antimatter Reactor Propulsion Light Treads Treads Light Treads Leg Sigix Exoskeleton Wheel Wheel Flight Unit Cooled Impulse Thruster Utility System Shield Device Structural Scanner Storage Small Storage Unit Processor Improved Melee Analysis Suite Hackware System Shield Protection Improved Propulsion Shielding Weapon Lance Energy Gun Sigix Sheargun Energy Cannon Warp Cannon Ballistic Gun Enhanced Autogun Ballistic Cannon Advanced Assault Cannon Launcher Grenade Launcher Special Weapon Advanced Remote Datajack Impact Weapon Heavy Mace Slashing Weapon Katana Piercing Weapon Lance Build | -11 -10 -10 -8 -8 -8 -6 -6 -6 -6 -5 -5 -5 -5 -5 -4 -4 -4 -4 -4 -4 -3 -3 -3 -2 -2 -2 -1 -1 ------- Run | Yrd Mat Sub Mat Sto Rec Fac Low Low Dat Pro Fac Upp Upp War Pro Fac Ext Cet Arc Hub Res Arm Lab Res Tes Sec Acc Com Slots Evolved 18 | . . . 4 . . 4 . . . . 2 . . . . 2 . . . . 2 . . 2 . . 2 . Power 1 | . . . . . . 1 . . . . . . . . . . . . . . . . . . . . . . Propulsion 5 | . . . 2 . . 1 . . . . 1 . . . . . . . . . 1 . . . . . . . Utility 9 | . . . 2 . . 2 . . . . 1 . . . . 1 . . . . 1 . . 2 . . . . Weapon 3 | . . . . . . . . . . . . . . . . 1 . . . . . . . . . . 2 . Parts Attached 210 | 7 10 4 27 18 5 13 . . . . 9 1 2 8 . 4 7 2 2 . 17 6 4 18 14 14 10 8 Power 33 | 1 2 . 5 2 1 4 . . . . 1 . 1 . . 1 2 . . . 1 1 . 6 . 5 . . Engine 14 | 1 1 . 2 1 1 3 . . . . . . . . . . 1 . . . . . . 3 . 1 . . Core 10 | . 1 . 3 1 . 1 . . . . 1 . 1 . . 1 1 . . . . . . . . . . . Reactor 9 | . . . . . . . . . . . . . . . . . . . . . 1 1 . 3 . 4 . . Propulsion 32 | 2 2 . 8 5 . 1 . . . . 1 . . 2 . . . . . . 1 1 . 2 5 2 . . Treads 11 | 2 1 . 5 3 . . . . . . . . . . . . . . . . . . . . . . . . Leg . | . . . . . . . . . . . . . . . . . . . . . . . . . . . . . Wheel 3 | . 1 . 1 1 . . . . . . . . . . . . . . . . . . . . . . . . Hover . | . . . . . . . . . . . . . . . . . . . . . . . . . . . . . Flight 18 | . . . 2 1 . 1 . . . . 1 . . 2 . . . . . . 1 1 . 2 5 2 . . Utility 97 | 2 2 1 6 3 4 8 . . . . 6 1 . 4 . 2 3 2 2 . 12 2 2 9 5 7 7 7 Device 45 | 1 . . . 1 2 5 . . . . 3 1 . 4 . . 2 . 1 . 5 1 . 7 3 4 5 . Storage 3 | 1 1 . . . . . . . . . . . . . . . . . . . 1 . . . . . . . Processor 28 | . . . 4 . . 2 . . . . 1 . . . . 2 1 . . . 4 1 . 2 2 2 2 5 Hackware 8 | . . . . . 2 . . . . . . . . . . . . . 1 . 1 . 1 . . 1 . 2 Protection 13 | . 1 1 2 2 . 1 . . . . 2 . . . . . . 2 . . 1 . 1 . . . . . Artifact . | . . . . . . . . . . . . . . . . . . . . . . . . . . . . . Weapon 48 | 2 4 3 8 8 . . . . . . 1 . 1 2 . 1 2 . . . 3 2 2 1 4 . 3 1 Energy Gun 8 | . . . . 1 . . . . . . . . . 1 . . . . . . . 1 . . 1 . 3 1 Energy Cannon 4 | . . . . . . . . . . . . . . . . . . . . . . . 2 . 2 . . . Ballistic Gun 15 | 2 3 2 1 7 . . . . . . . . . . . . . . . . . . . . . . . . Ballistic Cannon 4 | . . . 4 . . . . . . . . . . . . . . . . . . . . . . . . . Launcher 3 | . 1 . 1 . . . . . . . . . . 1 . . . . . . . . . . . . . . Special Weapon 2 | . . 1 . . . . . . . . . . . . . . . . . . . . . 1 . . . . Impact Weapon 1 | . . . 1 . . . . . . . . . . . . . . . . . . . . . . . . . Slashing Weapon 8 | . . . 1 . . . . . . . . . 1 . . 1 2 . . . 2 1 . . . . . . Piercing Weapon 3 | . . . . . . . . . . . 1 . . . . . . . . . 1 . . . 1 . . . Special Melee Weapon . | . . . . . . . . . . . . . . . . . . . . . . . . . . . . . Unidentified Prototypes 41 | . . . 4 2 . 1 . . . . . . . 5 . . . 1 . . 10 . 6 5 4 2 . 1 Parts Lost 40 | . 1 1 12 7 . 1 . . . 1 . . . . . . 2 . . . . 6 . 1 5 2 . 1 Power 9 | . . . 2 2 . 1 . . . . . . . . . . 1 . . . . 2 . . 1 . . . Propulsion 12 | . . . 5 3 . . . . . . . . . . . . . . . . . 1 . . 3 . . . Utility 13 | . 1 1 2 1 . . . . . . . . . . . . 1 . . . . 2 . 1 1 2 . 1 Weapon 6 | . . . 3 1 . . . . . 1 . . . . . . . . . . . 1 . . . . . . Highest Loss Streak 6 | . 1 1 4 4 . 1 . . . 1 . . . . . . 1 . . . . 6 . 1 2 2 . 1 To Critical Strikes 1 | . . . . . . . . . . . . . . . . . . . . . . . . . 1 . . . Average Backups 11 | 3 15 19 16 17 8 7 8 8 8 8 7 8 8 8 8 8 7 8 8 8 7 8 9 9 9 9 11 11 Power . | . . . . . . . . . . . . . . . . . . . . . . . . . . . . 1 Propulsion 1 | 1 2 3 1 2 1 . . . . . . 1 1 1 1 1 1 . . . . . . . . . . . Utility 6 | . 3 5 9 11 6 6 8 8 8 8 7 7 7 6 6 6 5 6 7 7 6 6 6 4 3 2 3 4 Weapon 3 | . 8 10 5 3 1 . . . . . . . . . 1 1 1 1 1 1 1 2 2 3 3 3 1 1 Tool/Special . | . . . . . . . . . . . . . . . . . . . . . . . . . . . . . Unused Backups 36 | . 1 3 8 1 4 2 1 . . . . . . 1 . 1 . . . . 2 . . 2 . 1 . 9 Power 4 | . 1 . . . . . . . . . . . . . . . . . . . . . . . . . . 3 Propulsion 8 | . . 1 1 1 3 . . . . . . . . 1 . . . . . . . . . . . 1 . . Utility 11 | . . . 3 . 1 2 1 . . . . . . . . 1 . . . . 2 . . . . . . 1 Weapon 7 | . . 2 4 . . . . . . . . . . . . . . . . . . . . 1 . . . . Tool/Special 6 | . . . . . . . . . . . . . . . . . . . . . . . . 1 . . . 5 Average Slot Usage (%) 84 | . 97 92 87 91 69 72 77 77 77 76 75 85 85 84 85 84 84 86 86 86 85 84 73 82 84 84 78 81 Engine 3 | . 6 14 3 1 6 4 5 5 5 5 5 5 2 . . . 1 4 4 4 1 . . 5 3 2 . . Core 3 | . 7 . 4 5 . 3 5 5 5 5 5 5 7 10 10 9 5 4 4 4 4 2 . . . . . . Reactor 1 | . . . . . . . . . . . . . . . . . . . . . 2 4 4 4 6 8 9 9 Treads 7 | . 14 14 26 11 . . . . . . . . . . . . . . . . . . . . . . . . Wheel 2 | . 13 14 1 7 . . . . . . . . . . . . . . . . . . . . . . . . Flight 9 | . . . 3 11 7 11 11 11 11 11 11 15 15 15 15 13 13 13 13 13 14 16 16 15 20 20 . . Device 9 | . 2 . . . 6 11 16 16 16 16 15 20 20 20 20 18 14 13 13 13 15 16 13 20 18 18 7 4 Storage 7 | . 14 14 9 8 7 5 5 5 5 5 5 5 5 5 5 4 4 4 4 4 4 4 4 3 4 5 9 9 Processor 11 | . . . 12 21 7 9 11 11 11 11 10 10 10 10 10 12 16 18 16 13 15 16 16 16 17 13 9 12 Hackware 5 | . . . . . 13 11 11 11 11 11 10 10 10 10 10 9 9 9 10 13 12 10 8 6 4 3 . . Protection 4 | . 9 6 9 4 7 4 . . . . 4 5 5 5 5 4 4 4 4 4 . . . . . . . . Energy Gun 1 | . . . . . . . . . . . . . . . . . . . . . . . . . . 3 28 34 Ballistic Gun 6 | . 20 22 7 16 7 3 . . . . . . . . . . . . . . . . . . . . . . Ballistic Cannon 1 | . . . 8 . . . . . . . . . . . . . . . . . . . . . . . . . Launcher 1 | . 7 3 . . . 1 5 5 5 4 . . . . . . . . . . . . . . . . . . Slashing Weapon 3 | . . . 1 . 6 5 5 5 5 5 5 5 5 4 5 8 9 9 9 9 7 6 7 5 3 3 . . Piercing Weapon 1 | . . . . . . . . . . . 4 5 5 4 5 4 4 4 4 4 4 3 . . 3 2 6 1 Peak Build Rating 250 | 7 13 16 37 59 64 83 81 81 81 81 101 99 102 118 110 122 129 131 132 132 170 172 166 187 191 226 247 250 Average Rating 90 | 5 10 12 27 36 61 74 81 81 81 80 89 98 100 107 110 119 124 125 131 128 151 165 155 177 159 184 242 246 On Entrance 105 | . 7 11 16 36 59 62 81 81 81 81 76 98 99 102 110 110 122 125 131 132 127 165 157 162 183 167 222 244 Naked Turns . | . . . . . . . . . . . . . . . . . . . . . . . . . . . . . Heaviest Build 70 | 13 56 56 70 60 54 32 26 26 26 26 34 27 30 30 30 35 41 36 36 36 45 49 46 49 44 51 55 55 Greatest Support 80 | 40 40 10 80 24 24 29 29 29 29 29 36 36 36 38 38 38 44 38 38 38 51 46 46 58 53 60 60 60 Greatest Overweight (x) 5 | . 5 5 5 5 4 1 . . . . 5 . . . . 2 1 . . . . 2 1 1 1 2 . . Average Overweight (x) . | . 4 5 1 4 . . . . . . . . . . . . . . . . . . . . . . . . Largest Inventory Capacity 20 | 8 20 20 20 20 20 8 8 8 8 8 8 8 8 8 8 8 8 8 8 8 10 10 10 10 10 12 12 12 Average Capacity 13 | 6 19 20 20 20 8 8 8 8 8 8 8 8 8 8 8 8 8 8 8 8 8 10 10 10 10 10 12 12 Most Carried 20 | 5 20 20 20 20 20 8 8 8 8 8 8 8 8 8 8 8 8 8 8 8 10 10 10 10 10 12 12 12 Average Carried 12 | 3 15 19 19 19 8 7 8 8 8 8 7 8 8 8 8 7 7 8 8 7 7 9 9 9 9 9 11 11 Final Capacity 20 | 8 20 20 20 20 8 8 8 8 8 8 8 8 8 8 8 8 8 8 8 8 10 10 10 10 10 12 12 12 Final Carried 20 | 5 20 20 19 20 8 8 8 8 8 8 8 8 8 8 8 8 8 8 8 8 10 8 10 10 9 12 12 10 Class Distribution -------------------- 30% | Mutant 24% | Hacker-Ninja 7% | Scavenger-Ninja 5% | Hacker-Mutant 5% | Scavenger-Mutant 5% | Commander-Scout 4% | Alien-Sigix 4% | Hacker-Scout Dominant Class ---------------- Mutant | -10/Materials Mutant | -10/Subcaves Mutant | -8/Materials Mutant | -8/Storage Hacker-Mutant | -8/Recycling Hacker-Scout | -6/Factory Hacker-Ninja | -6/Lower Caves Hacker-Ninja | -6/Lower Caves Hacker-Ninja | -6/Data Miner Hacker-Ninja | -5/Proximity Caves Hacker-Ninja | -5/Factory Hacker-Ninja | -5/Upper Caves Hacker-Ninja | -5/Upper Caves Hacker-Ninja | -5/Warlord Hacker-Ninja | -4/Proximity Caves Hacker-Ninja | -4/Factory Commander-Scout | -4/Extension Commander-Scout | -4/Cetus Commander-Scout | -4/Archives Commander-Ninja | -4/Hub_04(d) Hacker-Ninja | -3/Research Hacker-Ninja | -3/Armory Hacker-Ninja | -3/Lab Scavenger-Ninja | -2/Research Scavenger-Ninja | -2/Testing Scavenger-Ninja | -2/Section 7 Alien-Sigix | -1/Access Alien-Sigix | -1/Command Resources | -11 -10 -10 -8 -8 -8 -6 -6 -6 -6 -5 -5 -5 -5 -5 -4 -4 -4 -4 -4 -4 -3 -3 -3 -2 -2 -2 -1 -1 ----------- Run | Yrd Mat Sub Mat Sto Rec Fac Low Low Dat Pro Fac Upp Upp War Pro Fac Ext Cet Arc Hub Res Arm Lab Res Tes Sec Acc Com Matter Collected 5562 | 205 577 172 1368 1000 129 123 98 30 . . 127 50 20 . . 198 170 30 30 20 270 123 . 349 65 265 . 143 Remotely . | . . . . . . . . . . . . . . . . . . . . . . . . . . . . . Salvage Created 12492 | 27 723 84 1927 1577 . 133 20 66 . . 249 507 595 . . 213 809 51 214 . 914 147 . 559 375 504 . 2798 Parts 579 | 4 52 8 111 79 . 13 2 5 . . 7 11 4 . . 8 20 2 21 . 34 6 . 24 13 32 . 123 Haulers Intercepted 18 | . 2 . 6 4 . . . . . . 1 . . . . 1 . . . . 4 . . . . . . . Recyclers Shooed 3 | . . . 1 1 . . . . . . 1 . . . . . . . . . . . . . . . . . Parts Field Recycled . | . . . . . . . . . . . . . . . . . . . . . . . . . . . . . Retrieved Matter . | . . . . . . . . . . . . . . . . . . . . . . . . . . . . . Parts Self-Destructed 16 | . . . . . . . 4 2 . . . . 10 . . . . . . . . . . . . . . . Prevented . | . . . . . . . . . . . . . . . . . . . . . . . . . . . . . Kills | -11 -10 -10 -8 -8 -8 -6 -6 -6 -6 -5 -5 -5 -5 -5 -4 -4 -4 -4 -4 -4 -3 -3 -3 -2 -2 -2 -1 -1 ------- Run | Yrd Mat Sub Mat Sto Rec Fac Low Low Dat Pro Fac Upp Upp War Pro Fac Ext Cet Arc Hub Res Arm Lab Res Tes Sec Acc Com Combat Hostiles Destroyed 137 | . 15 2 38 28 . 1 1 4 . . 2 . . . . . 8 . . . . 1 . 1 5 4 . 27 Melee 26 | . . . 3 . . 1 1 . . . 2 . . . . . 8 . . . . 1 . 1 5 4 . . Guns 71 | . 8 2 12 22 . . . . . . . . . . . . . . . . . . . . . . . 27 Cannons 14 | . . . 14 . . . . . . . . . . . . . . . . . . . . . . . . . AOE 26 | . 7 . 9 6 . . . 4 . . . . . . . . . . . . . . . . . . . . Classes Destroyed 21 | 1 8 1 4 2 . . 1 . . . . . . . . . . . . . . . . . 1 . . 3 Worker 18 | . 4 . 4 1 . 2 . . . . . . . . . . . . . . . . . 6 . . . 1 Builder 12 | . 2 . 4 1 . 3 . . . . . . . . . . . . . . 1 . . 1 . . . . Tunneler 4 | 1 1 . . . . 1 . . . . . . . . . . . . . . . . . 1 . . . . Hauler 18 | . 2 . 6 4 . . . . . . 1 . . . . 1 . . . . 4 . . . . . . . Recycler 15 | . 1 . 3 2 . . . . . . 1 . . . . 1 1 . . . 3 . . 2 . 1 . . Operator 10 | . 1 . . . . . . . . . . . . . . . 1 . 4 . . . . 1 . 2 . 1 Watcher 21 | . 3 . 4 1 . . . . . . . . . . . . 3 2 . . 3 1 . 1 1 . . 2 Swarmer 31 | . 3 . 8 3 . 1 . 4 . . 2 . . . . . . . . . . . . . 1 . . 9 Grunt 59 | . 12 . 22 18 . . . . . . . . . . . . 1 . . . . . . . 3 1 . 2 Brawler 2 | . . . . 2 . . . . . . . . . . . . . . . . . . . . . . . . Duelist 2 | . . . 1 1 . . . . . . . . . . . . . . . . . . . . . . . . Protector 2 | . . . . 2 . . . . . . . . . . . . . . . . . . . . . . . . Sentry 19 | . . . 5 3 . . . . . . . . . . . . 6 . . . . 1 . 1 . 1 . 2 Hunter 1 | . . . 1 . . . . . . . . . . . . . . . . . . . . . . . . . Programmer 8 | . . . . . . . . . . . . . . . . . . . . . . . . . 1 2 . 5 Heavy 1 | . . . 1 . . . . . . . . . . . . . . . . . . . . . . . . . Striker 2 | . . . . . . . . . . . . . . . . . . . . . . . . . . . . 2 Executioner 4 | . . . . . . . . . . . . . . . . . . . . . . . . . . . . 4 Alpha 7 2 | . . . . . . . . . . . . . . . . . . . . . . . . . . . . 2 Subdweller 2 | . . 2 . . . . . . . . . . . . . . . . . . . . . . . . . . Packrat 6 | . . . . . . . . . . . . . 6 . . . . . . . . . . . . . . . Thief 1 | . . . . . . . 1 . . . . . . . . . . . . . . . . . . . . . Thug 1 | . . . . . . . . . . . . . . . . . 1 . . . . . . . . . . . Best Kill Streak 17 | 1 4 1 8 12 . 3 1 4 . . 2 . . . . 1 3 1 2 . 3 1 . 8 3 3 . 17 Combat Bots Only 15 | . 4 1 5 11 . 1 1 4 . . 2 . . . . . 2 . . . . 1 . 1 2 2 . 15 Max Kills in Single Turn 5 | 1 3 1 5 5 . 1 1 4 . . 1 . 1 . . 1 1 1 1 . 1 1 . 1 1 1 . 2 Gunslinging 1 | . . . . . . . . . . . . . . . . . . . . . . . . . . . . 1 Exploded 4 | . 2 . 4 4 . . . 4 . . . . . . . . . . . . . . . . . . . . Melee 1 | . . . 1 . . 1 1 . . . 1 . . . . . 1 . . . . 1 . 1 1 1 . . Uniques/NPCs Destroyed 3 | . . . . . . . . . . . . . . . . . . . 1 . . . . 1 . . . 1 A7 (-4/Archives) Warlord (-2/Research) MAIN.C Shell (-1/Command) Combat | -11 -10 -10 -8 -8 -8 -6 -6 -6 -6 -5 -5 -5 -5 -5 -4 -4 -4 -4 -4 -4 -3 -3 -3 -2 -2 -2 -1 -1 -------- Run | Yrd Mat Sub Mat Sto Rec Fac Low Low Dat Pro Fac Upp Upp War Pro Fac Ext Cet Arc Hub Res Arm Lab Res Tes Sec Acc Com Hostile Shots Fired 1064 | . 57 8 201 101 1 46 3 2 . 5 20 . 9 7 9 4 45 2 . 3 31 30 . 24 36 40 6 374 Missed 393 | . 21 3 57 29 . 22 2 1 . 1 11 . 4 4 6 3 17 2 . 1 16 9 . 11 22 19 4 128 Hits 671 | . 36 5 144 72 1 24 1 1 . 4 9 . 5 3 3 1 28 . . 2 15 21 . 13 14 21 2 246 Melee 16 | . . . . 4 . . 1 . . . . . . . . . . . . . . . . . . . . 11 Projectile 655 | . 36 5 144 68 1 24 . 1 . 4 9 . 5 3 3 1 28 . . 2 15 21 . 13 14 21 2 235 AOE 13 | . . . . . . . . . . . . . . 1 . . . . . . . 6 . . . . . 6 Critical Strikes 31 | . . . 5 9 . . . 1 . . . . . 1 . . . 1 . . 2 . . . 1 . . 11 Actively Blocked 6 | . . . . . . . . . . . . . . . . . . . . . . . . . . . . 6 Part Disruptions 2 | . . . . . . . . . . . . . . . . 1 . . . . . . . 1 . . . . Actively Blocked 1 | . . . . . . . . . . . . . . . . 1 . . . . . . . . . . . . Damage Taken 12713 | . 438 108 2317 1218 26 321 6 55 . 81 276 . 75 109 66 10 679 58 . 48 317 1060 . 367 457 364 21 4236 Core 2580 | . 71 . 355 192 . 50 . . . 17 40 . 18 . 19 . 24 . . . 42 154 . 35 140 43 7 1373 Absorbed by Shields 39 | . . . . . . . . . . . . . . . . . 11 . . . . . . . . . . 28 Redirected to Shielding 220 | . . . . . . . . . . . 99 . 16 31 15 6 53 . . . . . . . . . . . Ignored by Resistances 4654 | . . . 100 . . . . . . . . . . . . . . . . . . . . . . 148 23 4383 Regen/Repaired (Parts) 45 | . . . . . . . . . . . 19 . . 26 . . . . . . . . . . . . . . Core Remaining (%) 71 | 100 . 71 . . . . . . . 92 . . . . 92 . . . . 97 . . 84 . . 87 . 18 Volleys Fired 383 | 2 96 12 119 85 . . . 1 . . . . . . . . . . . . . . . 1 . 5 . 62 Largest 4 | 2 2 2 2 2 . . . 1 . . . . . . . . . . . . . . . 1 . 2 . 4 Hottest 400 | 40 53 100 80 70 . . . 45 . . . . . . . . . . . . . . . 10 . 200 . 400 Shots Fired 771 | 4 128 20 219 170 . . . 1 . . . . . . . . . . . . . . . 1 . 6 . 222 Gun 643 | 4 118 16 112 168 . . . . . . . . . . . . . . . . . . . . . 3 . 222 Cannon 107 | . . . 104 . . . . . . . . . . . . . . . . . . . . . . 3 . . Launcher 16 | . 10 . 3 2 . . . 1 . . . . . . . . . . . . . . . . . . . . Special 5 | . . 4 . . . . . . . . . . . . . . . . . . . . . 1 . . . . Kinetic 522 | 4 118 16 216 168 . . . . . . . . . . . . . . . . . . . . . . . . Thermal 8 | . . 4 . . . . . . . . . . . . . . . . . . . . . . . 4 . . Explosive 16 | . 10 . 3 2 . . . 1 . . . . . . . . . . . . . . . . . . . . Electromagnetic . | . . . . . . . . . . . . . . . . . . . . . . . . . . . . . Slashing 224 | . . . . . . . . . . . . . . . . . . . . . . . . . . 2 . 222 Robot Hit Streak 27 | 2 10 8 15 27 . . . 1 . . . . . . . . . . . . . . . 1 . 1 . 18 Robot Miss Streak 4 | 2 3 2 3 3 . . . 3 . . . . . . . . . . . . . . . . . 1 . 4 Penetration Max 1 | . . . 1 . . . . . . . . . . . . . . . . . . . . . . . . 1 Secondary Targets 16 | . 1 . 1 4 . . . . . . . . . . . . . . . . . . . . . . . 10 Max Gunslinging Chain 1 | . 1 . 1 1 . . . . . . . . . . . . . . . . . . . . . . . 1 Shots Hit Robots 669 | 2 79 12 157 110 . 9 1 1 . . 11 12 13 . . 3 34 2 6 1 26 4 . 18 11 12 . 145 Core Hits 396 | 1 47 4 104 75 . 5 1 12 . . 5 7 6 . . 2 17 1 4 . 11 3 . 7 8 7 . 69 Critical Kills 1 | . . . 1 . . . . . . . . . . . . . . . . . . . . . . . . . Critical Parts Destroyed 2 | . 1 . 1 . . . . . . . . . . . . . . . . . . . . . . . . . Critical Strikes 31 | . 1 . 5 . . 1 . . . . 2 1 . . . . 8 1 1 1 7 . . . . . . 3 Destroy 3 | . 1 . 2 . . . . . . . . . . . . . . . . . . . . . . . . . Blast 3 | . . . 3 . . . . . . . . . . . . . . . . . . . . . . . . . Sever 10 | . . . . . . 1 . . . . . . . . . . 3 . . . 3 . . . . . . 3 Impale 15 | . . . . . . . . . . . 2 1 . . . . 5 1 1 1 4 . . . . . . . Melee Attacks 397 | . . . 9 7 8 25 3 3 . 3 27 15 23 . 2 6 42 4 7 2 74 24 7 31 23 49 2 1 Impact 2 | . . . 2 . . . . . . . . . . . . . . . . . . . . . . . . . Slashing 201 | . . . 7 7 8 25 3 3 . 3 13 2 8 . 2 3 12 1 2 . 23 10 7 31 2 29 . . Piercing 194 | . . . . . . . . . . . 14 13 15 . . 3 30 3 5 2 51 14 . . 21 20 2 1 Sneak Attacks 53 | . . . . . . 6 . . . . 3 . 7 . . 2 6 . 6 1 8 . . 10 2 2 . . Combat Hostiles 8 | . . . . . . . . . . . . . . . . . 4 . . 1 . . . . 2 1 . . Follow-up Attacks 21 | . . . . . . . . . . . . . 3 . . . 8 . 1 . 7 . . 2 . . . . Damage Inflicted 32918 | 30 1746 172 4347 2681 . 503 31 376 . . 520 964 1077 . . 232 1932 143 539 86 1657 257 . 1979 732 968 . 11946 Guns 16527 | 24 1088 172 1415 1979 . . . . . . . . . . . . . . . . . . . . . 63 . 11786 Cannons 1727 | . . . 1727 . . . . . . . . . . . . . . . . . . . . . . . . . Explosions 2701 | . 658 . 980 687 . . . 376 . . . . . . . . . . . . . . . . . . . . Melee 11743 | . . . 192 . . 503 31 . . . 520 964 1077 . . 232 1932 143 539 86 1657 257 . 1979 732 850 . 49 Ramming 220 | 6 . . 33 15 . . . . . . . . . . . . . . . . . . . . . 55 . 111 Kinetic 6405 | 24 1088 172 3142 1979 . . . . . . . . . . . . . . . . . . . . . . . . Thermal . | . . . . . . . . . . . . . . . . . . . . . . . . . . . . . Explosive 2701 | . 658 . 980 687 . . . 376 . . . . . . . . . . . . . . . . . . . . Electromagnetic . | . . . . . . . . . . . . . . . . . . . . . . . . . . . . . Impact 55 | . . . 55 . . . . . . . . . . . . . . . . . . . . . . . . . Slashing 16327 | . . . 137 . . 503 31 . . . 368 . 198 . . 69 336 . 117 . 366 . . 1979 . 437 . 11786 Piercing 7210 | . . . . . . . . . . . 152 964 879 . . 163 1596 143 422 86 1291 257 . . 732 476 . 49 Highest Corruption 13 | . 1 1 . 3 3 . . . . . 1 1 . 1 1 1 1 1 1 . . 13 13 . 1 1 1 6 Average Corruption 2 | . 1 1 . 3 3 . . . . . 1 1 . 1 1 1 1 1 1 . . 13 13 . 1 1 1 3 Corruption Purged 2 | . . . . . . . . . . . . 1 . . . . . . 1 . . . . . . . . . Corruption Blocked . | . . . . . . . . . . . . . . . . . . . . . . . . . . . . . Effects 65 | . 6 4 . 2 13 . . . . . 7 1 . . 1 1 4 2 1 . . 7 4 . . 1 . 11 Message Errors 17 | . 1 1 . . 3 . . . . . 3 1 . . . . 2 1 . . . 1 . . . 1 . 3 Matter Fused 18 | . 1 1 . 1 6 . . . . . 2 . . . . 1 1 . . . . 2 2 . . . . 1 Heat Flow Errors 3 | . 1 1 . . . . . . . . 1 . . . . . . . . . . . . . . . . . Energy Discharges 8 | . 2 . . . 1 . . . . . 1 . . . 1 . . . . . . 1 2 . . . . . Parts Rejected 1 | . . . . . 1 . . . . . . . . . . . . . . . . . . . . . . . Parts Fused 1 | . . . . . . . . . . . . . . . . . . 1 . . . . . . . . . . Data Loss (minor) 6 | . 1 1 . . 2 . . . . . . . . . . . . . . . . 1 . . . . . 1 Misfires 1 | . . . . 1 . . . . . . . . . . . . . . . . . . . . . . . . Alerts 3 | . . . . . . . . . . . . . . . . . 1 . 1 . . . . . . . . 1 Misdirections 2 | . . . . . . . . . . . . . . . . . . . . . . 2 . . . . . . Weapon Failures 5 | . . . . . . . . . . . . . . . . . . . . . . . . . . . . 5 Overload Shots . | . . . . . . . . . . . . . . . . . . . . . . . . . . . . . Overflow Damage 2852 | . 13 . 55 3 . 94 . 24 . . 13 318 423 . . . . 99 147 77 584 . . 819 29 99 . 55 Projectiles 9 | . . . 9 . . . . . . . . . . . . . . . . . . . . . . . . . Explosions 56 | . 13 . 16 3 . . . 24 . . . . . . . . . . . . . . . . . . . . Melee 2787 | . . . 30 . . 94 . . . . 13 318 423 . . . . 99 147 77 584 . . 819 29 99 . 55 Knockbacks 13 | . . . 13 . . . . . . . . . . . . . . . . . . . . . . . . . Impact . | . . . . . . . . . . . . . . . . . . . . . . . . . . . . . Kinetic 12 | . . . 12 . . . . . . . . . . . . . . . . . . . . . . . . . Secondary 1 | . . . 1 . . . . . . . . . . . . . . . . . . . . . . . . . Self-Inflicted Damage 124 | . . . 66 16 . . . 42 . . . . . . . . . . . . . . . . . . . . Shots 7 | . . . 3 1 . . . 3 . . . . . . . . . . . . . . . . . . . . Rammed 8 | 2 . . 3 2 . 1 . . . . . . . . . . . . . . . . . . . . . . Targets Rammed 12 | 2 . . 4 2 . 1 . . . . . . . . . . . . . . . . . . . 1 . 2 Kicked 3 | . . . . . . . . . . . . . . . . . . . . . . . . . . 1 . 2 Crushed 1 | . . . 1 . . . . . . . . . . . . . . . . . . . . . . . . . Highest Temperature 347 | . 239 190 328 114 . 347 . . . . 212 . . . 8 . 79 . . 6 41 9 . 54 269 312 . 61 Average Temperature 55 | . 53 112 56 20 . 131 . . . . 122 . . . 5 . 30 . . 3 18 5 . 9 73 106 . 17 Received Heat Transfer 2451 | . 201 18 792 630 9 102 . . . 9 . . . . 9 . 84 . . 9 90 57 . 9 9 54 9 360 Effects 6 | . . . 4 . . 2 . . . . . . . . . . . . . . . . . . . . . . Shutdowns 1 | . . . . . . 1 . . . . . . . . . . . . . . . . . . . . . . Interference 3 | . . . 3 . . . . . . . . . . . . . . . . . . . . . . . . . Matter Decay 1 | . . . 1 . . . . . . . . . . . . . . . . . . . . . . . . . Damage (minor) 1 | . . . . . . 1 . . . . . . . . . . . . . . . . . . . . . . Siege Activations . | . . . . . . . . . . . . . . . . . . . . . . . . . . . . . Martial Activations . | . . . . . . . . . . . . . . . . . . . . . . . . . . . . . Shielding Activations . | . . . . . . . . . . . . . . . . . . . . . . . . . . . . . Robots Disrupted . | . . . . . . . . . . . . . . . . . . . . . . . . . . . . . Combat Hostiles . | . . . . . . . . . . . . . . . . . . . . . . . . . . . . . Robots Corrupted 1 | . . . 1 . . . . . . . . . . . . . . . . . . . . . . . . . Combat Hostiles . | . . . . . . . . . . . . . . . . . . . . . . . . . . . . . Parts Fried 2 | . . . . . . . . . . . . . . . . . . . . . . . . . 1 . . 1 Impact Corruptions 5 | . . . 2 . . . . . . . . . . . . . . . . . . . . . . 1 . 2 Robots Melted . | . . . . . . . . . . . . . . . . . . . . . . . . . . . . . Combat Hostiles . | . . . . . . . . . . . . . . . . . . . . . . . . . . . . . Parts Melted 1 | . . . . 1 . . . . . . . . . . . . . . . . . . . . . . . . Heat Transferred . | . . . . . . . . . . . . . . . . . . . . . . . . . . . . . Parts Sabotaged . | . . . . . . . . . . . . . . . . . . . . . . . . . . . . . Parts Stolen . | . . . . . . . . . . . . . . . . . . . . . . . . . . . . . Parts Stripped . | . . . . . . . . . . . . . . . . . . . . . . . . . . . . . Power Chain Reactions . | . . . . . . . . . . . . . . . . . . . . . . . . . . . . . Alert | -11 -10 -10 -8 -8 -8 -6 -6 -6 -6 -5 -5 -5 -5 -5 -4 -4 -4 -4 -4 -4 -3 -3 -3 -2 -2 -2 -1 -1 ------- Run | Yrd Mat Sub Mat Sto Rec Fac Low Low Dat Pro Fac Upp Upp War Pro Fac Ext Cet Arc Hub Res Arm Lab Res Tes Sec Acc Com Maximum Alert Level 5 | . 1 . 2 3 1 2 . . . . . . . . . . 1 1 1 . 1 . . . 2 5 5 5 Low Security (%) 52 | 100 96 . 38 . 12 . . . . . 100 . . . . 100 43 72 35 100 93 100 . 100 18 . . . Level 1 24 | . 3 . 22 43 87 74 . . . . . . . . . . 56 27 64 . 6 . . . 3 46 . . Level 2 16 | . . . 39 38 . 25 . . . . . . . . . . . . . . . . . . 78 45 . . Level 3 2 | . . . . 18 . . . . . . . . . . . . . . . . . . . . . . 58 16 Level 4 2 | . . . . . . . . . . . . . . . . . . . . . . . . . . . 36 51 Level 5 1 | . . . . . . . . . . . . . . . . . . . . . . . . . . . . 32 High Security . | . . . . . . . . . . . . . . . . . . . . . . . . . . . . . Max Security . | . . . . . . . . . . . . . . . . . . . . . . . . . . 8 4 . Peak Influence 1631 | 5 216 . 640 895 344 572 . . . . 78 . . . . 32 300 249 263 195 242 166 . 76 670 1603 1600 1631 Initial 1100 | . . . . 265 340 372 . . . . . . . . . 18 . 113 79 81 96 123 . . 25 376 1100 1100 Average 254 | . 58 . 281 488 259 370 . . . . 16 . . . . 9 151 137 201 93 121 117 . 13 453 499 1111 1396 Influence Increases 10147 | 5 641 . 1371 1472 237 703 45 90 . . 171 . 5 . 60 74 613 366 234 284 550 251 . 389 905 406 129 1146 Destroy 0b10 Robot/C 3540 | . 300 . 760 700 . 20 . 80 . . 40 . . . . . 300 160 80 60 . 20 . 80 220 80 40 600 Destroy 0b10 Robot/NC 525 | 5 70 . 105 55 . 30 . . . . 10 . 5 . . 10 25 10 20 5 55 5 . 60 20 15 . 20 Destroy Leader 738 | . 100 . 200 150 . . . 10 . . 12 . . . . 2 26 . . 22 14 12 . 42 24 20 10 94 Allied During Kill 563 | . . . . 167 . . . . . . . . . . . . 79 158 100 33 . . . 4 12 . 10 . Successful Hack 638 | . 28 . 31 17 4 28 . . . . 21 . . . . 58 . . . 37 99 83 . 5 83 96 48 . Select Force Hacks 490 | . 60 . 30 60 180 60 . . . . . . . . . . . . . 100 . . . . . . . . Disable Machine 630 | . 30 . 30 75 . 15 . . . . . . . . . . 15 . 30 . . 30 . 15 180 150 . 60 Anti-Garrison Action 150 | . . . . 150 . . . . . . . . . . . . . . . . . . . . . . . . Destroy Structure 998 | . 53 . 110 53 8 10 . . . . 28 . . . . 4 18 38 4 12 52 26 . 63 186 15 6 312 Advance Influence 300 | . . . . . . 300 . . . . . . . . . . . . . . . . . . . . . . Partial Spotted 195 | . . . . . 45 . . . . . 15 . . . . . 15 . . . 30 . . 15 30 30 15 . Lose Combat Pursuer 1380 | . . . 105 45 . 240 45 . . . 45 . . . 60 . 135 . . 15 300 75 . 105 150 . . 60 Influence Decreases 10104 | 5 637 4 743 1227 937 459 346 93 113 . 171 . 5 . 30 104 410 370 200 332 500 352 134 343 281 660 762 886 Entered New Map 3534 | . . 3 . 363 533 101 156 23 113 . . . . . . 12 . 90 120 152 89 112 134 . 21 294 642 576 Time Decay 4849 | 5 477 1 623 474 404 198 180 70 . . 166 . 5 . 30 92 262 180 60 80 362 180 . 284 190 286 60 180 Search Patrol Dispatched 150 | . . . . . . 150 . . . . . . . . . . . . . . . . . . . . . . Lost Part 366 | . 10 . 120 70 . 10 . . . . . . . . . . 10 . . . . 60 . 6 50 20 . 10 Lost Ally 1055 | . . . . 320 . . 10 . . . 5 . . . . . 138 100 20 100 49 . . 53 20 60 60 120 Purge Threat 150 | . 150 . . . . . . . . . . . . . . . . . . . . . . . . . . . Squads Dispatched 80 | . 7 . 8 9 . 5 . . . . 6 . . . . 4 . . . 7 5 3 . 1 5 8 7 5 Investigation 26 | . 5 . 4 2 . 3 . . . . 2 . . . . 1 . . . 5 1 . . . . . 1 2 Extermination 11 | . . . . . . 1 . . . . 2 . . . . 2 . . . . 1 1 . . 1 1 . 2 Reinforcement 26 | . 2 . 4 2 . 1 . . . . 2 . . . . 1 . . . 2 3 2 . 1 4 1 . 1 Assault 16 | . . . . 4 . . . . . . . . . . . . . . . . . . . . . 6 6 . Garrison 1 | . . . . 1 . . . . . . . . . . . . . . . . . . . . . . . . Intercept . | . . . . . . . . . . . . . . . . . . . . . . . . . . . . . Searches Triggered 1 | . . . . . . 1 . . . . . . . . . . . . . . . . . . . . . . Data Miner Redirects 3 | . . . . . . . . . . . . . . . . . . . . 3 . . . . . . . . Construction Impeded 3 | . . . 1 . . . . . . . . . . . . . . . . 1 . . . . 1 . . . Haulers Reinforced 3 | . . . . . . . . . . . 1 . . . . . . . . . 2 . . . . . . . Active Scanning Responses . | . . . . . . . . . . . . . . . . . . . . . . . . . . . . . Cargo Convoy Interrupts . | . . . . . . . . . . . . . . . . . . . . . . . . . . . . . Stealth | -11 -10 -10 -8 -8 -8 -6 -6 -6 -6 -5 -5 -5 -5 -5 -4 -4 -4 -4 -4 -4 -3 -3 -3 -2 -2 -2 -1 -1 --------- Run | Yrd Mat Sub Mat Sto Rec Fac Low Low Dat Pro Fac Upp Upp War Pro Fac Ext Cet Arc Hub Res Arm Lab Res Tes Sec Acc Com Distress Signals 33 | . . . 3 1 1 2 . . . . 2 . . . . . 2 2 . 1 4 3 . 8 2 2 . . Communications Jammed 5 | . . . . . . . . . . . . . . . . . . . . . 5 . . . . . . . Distress Signals 5 | . . . . . . . . . . . . . . . . . . . . . 5 . . . . . . . Times Spotted 451 | . 28 2 58 43 3 21 5 4 . 3 13 . 5 4 3 2 23 12 2 6 25 14 . 30 19 32 9 85 Peak Tracking Total 17 | . 6 1 7 6 1 14 7 4 . 3 6 . 5 6 4 2 10 5 1 4 11 6 . 6 5 7 9 17 Tactical Retreats 43 | . . . 5 2 3 4 1 . . . 2 . . . 1 . 3 . . 1 8 2 . 4 5 . . 2 Traps | -11 -10 -10 -8 -8 -8 -6 -6 -6 -6 -5 -5 -5 -5 -5 -4 -4 -4 -4 -4 -4 -3 -3 -3 -2 -2 -2 -1 -1 ------- Run | Yrd Mat Sub Mat Sto Rec Fac Low Low Dat Pro Fac Upp Upp War Pro Fac Ext Cet Arc Hub Res Arm Lab Res Tes Sec Acc Com Traps Triggered 28 | . 2 . 5 . . 4 . . . . 2 . . . . . 9 . . 2 . . . . . 1 . 3 Indirectly . | . . . . . . . . . . . . . . . . . . . . . . . . . . . . . Trap Hack Attempts . | . . . . . . . . . . . . . . . . . . . . . . . . . . . . . Triggered . | . . . . . . . . . . . . . . . . . . . . . . . . . . . . . Disarmed . | . . . . . . . . . . . . . . . . . . . . . . . . . . . . . Reprogrammed . | . . . . . . . . . . . . . . . . . . . . . . . . . . . . . Reused . | . . . . . . . . . . . . . . . . . . . . . . . . . . . . . Traps Extracted . | . . . . . . . . . . . . . . . . . . . . . . . . . . . . . Installed . | . . . . . . . . . . . . . . . . . . . . . . . . . . . . . Triggered . | . . . . . . . . . . . . . . . . . . . . . . . . . . . . . Machines | -11 -10 -10 -8 -8 -8 -6 -6 -6 -6 -5 -5 -5 -5 -5 -4 -4 -4 -4 -4 -4 -3 -3 -3 -2 -2 -2 -1 -1 ---------- Run | Yrd Mat Sub Mat Sto Rec Fac Low Low Dat Pro Fac Upp Upp War Pro Fac Ext Cet Arc Hub Res Arm Lab Res Tes Sec Acc Com Machines Disabled 45 | . 2 1 2 6 . 1 . . . . . . . . . . 1 . 2 . . 2 1 1 12 10 . 4 Max in Single Turn 1 | . 1 1 1 1 . 1 . . . . . . . . . . 1 . . . . 1 1 . 1 1 . 1 Garrison Access 4 | . . . . 1 . 1 . . . . . . . . . . . . . . 1 . . 1 . . . . Network Hub 3 | . . . . . . . . . . . . . . . . . . . . 3 . . . . . . . . Machines Repaired . | . . . . . . . . . . . . . . . . . . . . . . . . . . . . . Machines Dismantled . | . . . . . . . . . . . . . . . . . . . . . . . . . . . . . Machines Sabotaged 2 | . . . . . . . . . . . . . . . . . . . . 2 . . . . . . . . Overloaded Fab Kills . | . . . . . . . . . . . . . . . . . . . . . . . . . . . . . Hacking | -11 -10 -10 -8 -8 -8 -6 -6 -6 -6 -5 -5 -5 -5 -5 -4 -4 -4 -4 -4 -4 -3 -3 -3 -2 -2 -2 -1 -1 --------- Run | Yrd Mat Sub Mat Sto Rec Fac Low Low Dat Pro Fac Upp Upp War Pro Fac Ext Cet Arc Hub Res Arm Lab Res Tes Sec Acc Com Machines Accessed 123 | . 9 1 9 11 11 11 . 1 4 . 4 . 1 8 . 7 2 . . 7 14 4 . 3 5 6 3 2 Terminals 79 | . 7 . 8 8 5 6 . . . . 2 . 1 . . 6 1 . . 7 11 3 . 2 3 5 2 2 Fabricators 4 | . . . . . . 1 . . . . . . . . . . . . . . 1 . . . 2 . . . Repair Stations 1 | . . . . . . . . . . . 1 . . . . . . . . . . . . . . . . . Recycling Units 19 | . 2 . 1 2 6 3 . . . . . . . . . 1 1 . . . 1 1 . . . . 1 . Scanalyzers 1 | . . . . . . . . . . . . . . . . . . . . . . . . . . 1 . . Garrison Access 5 | . . . . 1 . 1 . . . . 1 . . . . . . . . . 1 . . 1 . . . . Total Hacks 478 | . 31 1 29 27 34 28 . 1 29 . 14 . 1 18 . 19 3 . . 33 79 32 . 16 21 37 15 10 Successful 252 | . 18 1 17 16 24 14 . 1 29 . 4 . 1 18 . 8 1 . . 19 35 11 . 7 8 18 2 . Failed 225 | . 13 . 12 11 10 14 . . . . 10 . . . . 11 2 . . 14 44 21 . 9 13 18 13 10 Catastrophic 46 | . . . . 1 1 2 . . . . 5 . . . . . . . . 2 15 3 . 3 1 5 4 4 Database Lockouts 1 | . . . . . . . . . . . . . . . . . . . . . . . . . . 1 . . Manual 259 | . 18 . 24 19 23 17 . . . . . . . 2 . 4 2 1 . 24 48 12 . 8 17 32 1 7 Terminals 347 | . 27 . 25 21 20 15 . . . . 9 . 1 . . 18 2 . . 33 67 30 . 14 8 36 11 10 Fabricators 25 | . . . . . . 5 . . . . . . . . . . . . . . 7 . . . 13 . . . Repair Stations 2 | . . . . . . . . . . . 2 . . . . . . . . . . . . . . . . . Recycling Units 44 | . 4 . 4 4 14 6 . . . . . . . . . 1 1 . . . 4 2 . . . . 4 . Scanalyzers 1 | . . . . . . . . . . . . . . . . . . . . . . . . . . 1 . . Garrison Access 10 | . . . . 2 . 2 . . . . 3 . . . . . . . . . 1 . . 2 . . . . Terminal Hacks 143 | . 6 1 6 6 6 3 . 1 29 . 2 . 1 18 . 6 . . . 11 19 8 . 4 1 14 1 . Record 27 | . . . . . . . . . 11 . . . 1 11 . . . . . . 3 . . . 1 . . . Part Schematic 11 | . . . . . . . . . 9 . . . . . . 1 . . . . 1 . . . . . . . Robot Schematic 6 | . . . . . . . . . 6 . . . . . . . . . . . . . . . . . . . Robot Analysis 10 | . 1 . 3 1 . . . . . . . . . . . . . . . 2 . . . . . 3 . . Prototype ID Bank 15 | . 1 . . . . . . . 3 . . . . 5 . . . . . 2 2 1 . . . 1 . . Open Door 7 | . . . . 4 . . . 1 . . . . . 2 . . . . . . . . . . . . . . Level Access Points 3 | . . . . . . . . . . . . . . . . . . . . 1 1 1 . . . . . . Branch Access Points 4 | . . . 1 . . 1 . . . . . . . . . 1 . . . . 1 . . . . . . . Emergency Access Points 1 | . . . . . . . . . . . . . . . . . . . . . . . . . . 1 . . Machine Index 1 | . . . . . . . . . . . . . . . . . . . . . 1 . . . . . . . Terminal Index 11 | . 1 . 1 . 2 1 . . . . 1 . . . . . . . . 1 1 . . 1 . 1 1 . Recycling Unit Index 1 | . . . 1 . . . . . . . . . . . . . . . . . . . . . . . . . Scanalyzer Index 1 | . . . . . 1 . . . . . . . . . . . . . . . . . . . . . . . Alert Level 7 | . . . . 1 1 1 . . . . . . . . . . . . . 1 2 1 . . . . . . Unreport Threat 1 | . 1 . . . . . . . . . . . . . . . . . . . . . . . . . . . Locate Traps 6 | . 2 . . . . . . . . . . . . . . 1 . . . . . 1 . . . 2 . . Dispatch Records 2 | . . . . . . . . . . . . . . . . . . . . 1 . . . . . 1 . . Recall Extermination 2 | . . . . . . . . . . . . . . . . 1 . . . . . 1 . . . . . . Recall Reinforcements 2 | . . . . . . . . . . . 1 . . . . . . . . . . . . . . 1 . . Hauler Manifests 2 | . . . . . . . . . . . . . . . . . . . . . 1 . . 1 . . . . Registered Components 5 | . . . . . . . . . . . . . . . . 1 . . . . 1 1 . 1 . 1 . . Registered Prototypes 4 | . . . . . . . . . . . . . . . . . . . . 1 1 1 . 1 . . . . Zone Layout 13 | . . . . . 2 . . . . . . . . . . 1 . . . 2 4 1 . . . 3 . . Proto ID Catalog 1 | . . 1 . . . . . . . . . . . . . . . . . . . . . . . . . . Fabricator Hacks 4 | . . . . . . 1 . . . . . . . . . . . . . . 2 . . . 1 . . . Network Status 3 | . . . . . . 1 . . . . . . . . . . . . . . 1 . . . 1 . . . Build 1 | . . . . . . . . . . . . . . . . . . . . . 1 . . . . . . . Repair Station Hacks 2 | . . . . . . . . . . . 2 . . . . . . . . . . . . . . . . . Scan Component 1 | . . . . . . . . . . . 1 . . . . . . . . . . . . . . . . . Repair 1 | . . . . . . . . . . . 1 . . . . . . . . . . . . . . . . . Recycling Unit Hacks 18 | . 2 . 2 2 5 3 . . . . . . . . . 1 1 . . . 1 1 . . . . . . Report Inventory 17 | . 2 . 1 2 5 3 . . . . . . . . . 1 1 . . . 1 1 . . . . . . Retrieve Components 1 | . . . 1 . . . . . . . . . . . . . . . . . . . . . . . . . Scanalyzer . | . . . . . . . . . . . . . . . . . . . . . . . . . . . . . Garrison Access Hacks 3 | . . . . . . 1 . . . . . . . . . . . . . . 1 . . 1 . . . . Seal Access 3 | . . . . . . 1 . . . . . . . . . . . . . . 1 . . 1 . . . . Unauthorized Hacks 81 | . 10 . 9 8 12 6 . . . . . . . . . 1 . . . 8 12 2 . 2 6 4 1 . Terminals 57 | . 8 . 8 6 6 2 . . . . . . . . . 1 . . . 8 9 2 . 2 1 3 1 . Assimilate 4 | . . . . . . . . . . . . . . . . . . . . 2 1 . . . . 1 . . Botnet 22 | . 2 . 1 2 2 2 . . . . . . . . . 1 . . . 2 3 2 . 1 1 2 1 . Skim 27 | . 6 . 7 4 4 . . . . . . . . . . . . . . . 5 . . 1 . . . . Sabotage 4 | . . . . . . . . . . . . . . . . . . . . 4 . . . . . . . . Fabricators 10 | . . . . . . 2 . . . . . . . . . . . . . . 3 . . . 5 . . . Report 3 | . . . . . . 1 . . . . . . . . . . . . . . 1 . . . 1 . . . Liberate 3 | . . . . . . . . . . . . . . . . . . . . . 1 . . . 2 . . . Fabnet 4 | . . . . . . 1 . . . . . . . . . . . . . . 1 . . . 2 . . . Repair Stations . | . . . . . . . . . . . . . . . . . . . . . . . . . . . . . Recycling Units 13 | . 2 . 1 2 6 2 . . . . . . . . . . . . . . . . . . . . . . Tunnel 13 | . 2 . 1 2 6 2 . . . . . . . . . . . . . . . . . . . . . . Scanalyzers 1 | . . . . . . . . . . . . . . . . . . . . . . . . . . 1 . . Researchers 1 | . . . . . . . . . . . . . . . . . . . . . . . . . . 1 . . Garrison Access . | . . . . . . . . . . . . . . . . . . . . . . . . . . . . . Data Cores Recovered 3 | . . . . . . . . . . . . . . . . . . . . . . . . 1 . 2 . . Used 1 | . . . . . . . . . . . . . . . . . . . . . . . . 1 . . . . Hacking Detections 83 | . 7 . 7 6 5 9 . . . . 3 . 1 . . 6 1 1 . 7 13 2 . 2 4 4 3 2 Full Trace Events 10 | . . . 1 1 . 1 . . . . 2 . . . . 1 . . . 1 . . . . . . 1 2 Feedback Events 2 | . . . . . . . . . . . . . . . . 1 . . . . . . . . . . 1 . Corruption 2 | . . . . . . . . . . . . . . . . 1 . . . . . . . . . . 1 . Feedback Blocked . | . . . . . . . . . . . . . . . . . . . . . . . . . . . . . Robot Schematics Acquired 6 | . . . . . . . . . 6 . . . . . . . . . . . . . . . . . . . Robots Built 2 | . . . . . . . . . . . . . . . . . . . . . 2 . . . . . . . Authchips . | . . . . . . . . . . . . . . . . . . . . . . . . . . . . . Time 56 | . . . . . . . . . . . . . . . . . . . . . 56 . . . . . . . Total Robot Build Rating 12 | . . . . . . . . . . . . . . . . . . . . . 12 . . . . . . . Part Schematics Acquired 11 | . . . . . . . . . 9 . . . . . . 1 . . . . 1 . . . . . . . Parts Built . | . . . . . . . . . . . . . . . . . . . . . . . . . . . . . Authchips . | . . . . . . . . . . . . . . . . . . . . . . . . . . . . . Time . | . . . . . . . . . . . . . . . . . . . . . . . . . . . . . Total Part Build Rating . | . . . . . . . . . . . . . . . . . . . . . . . . . . . . . Parts Repaired 1 | . . . . . . . . . . . 1 . . . . . . . . . . . . . . . . . Time 60 | . . . . . . . . . . . 60 . . . . . . . . . . . . . . . . . Parts Recycled . | . . . . . . . . . . . . . . . . . . . . . . . . . . . . . Recycled Matter . | . . . . . . . . . . . . . . . . . . . . . . . . . . . . . Retrieved Matter . | . . . . . . . . . . . . . . . . . . . . . . . . . . . . . Retrieved Components 10 | . . . 10 . . . . . . . . . . . . . . . . . . . . . . . . . Parts Scanalyzed . | . . . . . . . . . . . . . . . . . . . . . . . . . . . . . Part Schematics Acquired . | . . . . . . . . . . . . . . . . . . . . . . . . . . . . . Parts Damaged . | . . . . . . . . . . . . . . . . . . . . . . . . . . . . . Bothacking | -11 -10 -10 -8 -8 -8 -6 -6 -6 -6 -5 -5 -5 -5 -5 -4 -4 -4 -4 -4 -4 -3 -3 -3 -2 -2 -2 -1 -1 ------------ Run | Yrd Mat Sub Mat Sto Rec Fac Low Low Dat Pro Fac Upp Upp War Pro Fac Ext Cet Arc Hub Res Arm Lab Res Tes Sec Acc Com Used RIF Installer . | . . . . . . . . . . . . . . . . . . . . . . . . . . . . . Robots Hacked 10 | . . . . . . . . . . . . . . 1 . . . . . . . . . 6 . 2 . 1 Non-combat . | . . . . . . . . . . . . . . . . . . . . . . . . . . . . . Combat 9 | . . . . . . . . . . . . . . 1 . . . . . . . . . 5 . 2 . 1 Robot Hacks Applied . | . . . . . . . . . . . . . . . . . . . . . . . . . . . . . Manual 1 | . . . . . . . . . . . . . . . . . . . . . . . . 1 . . . . Relay Couplers Released 1 | . . . . 1 . . . . . . . . . . . . . . . . . . . . . . . . Machine Destruction 1 | . . . . 1 . . . . . . . . . . . . . . . . . . . . . . . . Fabnet Peak Effective % 4 | . . . . . . . . . . 3 3 3 3 3 1 1 1 1 1 1 . . . 3 3 3 4 4 Autooverrided 9 | . . . . . . . . . . . . . . 1 . . . . . . . . . 5 . 2 . 1 Robots Rewired 10 | . . . . . . . . . . . . . . . . . 10 . . . . . . . . . . . Allies Hacked 4 | . . . . . . . . . . . . . . . . . . . . . 3 . . 1 . . . . Hacks Repelled . | . . . . . . . . . . . . . . . . . . . . . . . . . . . . . Allies | -11 -10 -10 -8 -8 -8 -6 -6 -6 -6 -5 -5 -5 -5 -5 -4 -4 -4 -4 -4 -4 -3 -3 -3 -2 -2 -2 -1 -1 -------- Run | Yrd Mat Sub Mat Sto Rec Fac Low Low Dat Pro Fac Upp Upp War Pro Fac Ext Cet Arc Hub Res Arm Lab Res Tes Sec Acc Com Total Allies 84 | . . . . 10 . . . . . . . . . 1 . . 22 5 . 1 3 . . 11 . 2 7 22 Largest Group 12 | . . . . 10 . . . . . . . . . 1 . . 12 12 11 11 2 . . 5 1 2 7 7 Highest-Rated Group 892 | . . . . 173 . . . . . . . . . 54 . . 635 892 740 702 98 . . 741 345 112 102 115 Highest-Rated Ally 357 | . . . . 29 . . . . . . . . . 54 . . 159 152 96 96 49 . . 357 345 58 15 30 Total Orders 13 | . . . . 4 . . 1 . . . 4 . . . . . . . . . . . . 2 1 1 . . ROAM 2 | . . . . 1 . . . . . . . . . . . . . . . . . . . . 1 . . . FOLLOW 3 | . . . . 2 . . . . . . . . . . . . . . . . . . . 1 . . . . AID 1 | . . . . . . . . . . . . . . . . . . . . . . . . 1 . . . . EXPLORE 7 | . . . . 1 . . 1 . . . 4 . . . . . . . . . . . . . . 1 . . Ally Attacks 385 | . . . . 118 . . . . . . . . . 3 . . 41 53 35 34 1 . . 44 6 6 14 30 Total Damage 10984 | . . . . 1457 . . . . . . . . . 26 . . 1454 1663 1179 1177 24 . . 2243 999 157 280 325 Kills 58 | . . . . 9 . . . . . . . . . . . . 7 8 4 4 . . . 11 9 . 2 4 Allies Corrupted 1 | . . . . . . . . . . . . . . . . . . . . . . . . . . . . 1 Allies Melted 3 | . . . . . . . . . . . . . . . . . . . . . . . . 3 . . . . Intel | -11 -10 -10 -8 -8 -8 -6 -6 -6 -6 -5 -5 -5 -5 -5 -4 -4 -4 -4 -4 -4 -3 -3 -3 -2 -2 -2 -1 -1 ------- Run | Yrd Mat Sub Mat Sto Rec Fac Low Low Dat Pro Fac Upp Upp War Pro Fac Ext Cet Arc Hub Res Arm Lab Res Tes Sec Acc Com Active Infowar (turns) 9415 | 16 289 . . . 886 418 364 144 37 108 729 267 239 275 110 252 747 362 134 161 839 360 183 1214 391 655 103 132 Optics 5375 | . . . . . . . . . . . . . . . . 223 747 362 134 161 839 360 183 1214 391 545 84 132 Sensors 8458 | . . . . . 877 417 364 144 37 108 729 267 239 275 110 252 698 362 134 161 839 360 179 1214 389 303 . . Structural 6327 | . . . . . 9 411 364 144 37 108 729 267 239 275 110 252 102 . . 36 819 360 183 1187 391 304 . . Traps 1 | . . . . . . . . . . . . . . 1 . . . . . . . . . . . . . . Seismic 305 | 16 289 . . . . . . . . . . . . . . . . . . . . . . . . . . . Triangulation 1767 | . . . . . . . . . . . . . . . . . . . . . . . . 799 391 577 . . Cloaking 3543 | . . . . . . 57 316 144 37 108 608 267 111 99 109 211 134 . . 48 7 264 1 91 230 552 88 61 Jamming 194 | . . . . . . . . . . . . . . . . . . . . . 131 17 . 45 1 . . . ECM 3 | . . . . . . . . . . . 3 . . . . . . . . . . . . . . . . . Robot Analysis Total 8 | . 1 . 1 1 . . . . . . . . . . . . . . . 2 . . . . . 3 . . Derelict Logs Recovered 6 | . . . . . . . 1 1 . 1 . 1 1 . 1 . . . . . . . . . . . . . Drone Launches 22 | . . . . 14 . . 1 . . . 5 . . . . . . . . . . . . . . 2 . . Drone Recoveries 3 | . . . . . . . . . . . 3 . . . . . . . . . . . . . . . . . Exploration | -11 -10 -10 -8 -8 -8 -6 -6 -6 -6 -5 -5 -5 -5 -5 -4 -4 -4 -4 -4 -4 -3 -3 -3 -2 -2 -2 -1 -1 ------------- Run | Yrd Mat Sub Mat Sto Rec Fac Low Low Dat Pro Fac Upp Upp War Pro Fac Ext Cet Arc Hub Res Arm Lab Res Tes Sec Acc Com Turns Passed 15567 | 118 1616 615 2425 1206 964 418 364 144 37 108 729 267 239 283 110 252 747 362 134 161 839 360 183 1214 391 688 141 452 Spaces Moved 18887 | 61 876 364 1044 523 835 864 470 353 108 253 690 583 541 805 343 683 770 343 71 224 2077 561 192 2015 751 1551 292 644 Core 5 | 3 . . . . 2 . . . . . . . . . . . . . . . . . . . . . . . Treads 948 | 58 16 . 871 3 . . . . . . . . . . . . . . . . . . . . . . . . Legs 1236 | . . . . . . . . . . . . . . . . . . . . . . . . . . 300 292 644 Wheels 1855 | . 860 364 173 458 . . . . . . . . . . . . . . . . . . . . . . . . Hover . | . . . . . . . . . . . . . . . . . . . . . . . . . . . . . Flight 14843 | . . . . 62 833 864 470 353 108 253 690 583 541 805 343 683 770 343 71 224 2077 561 192 2015 751 1251 . . Fastest Speed 11 | 50 140 155 155 120 40 34 34 34 34 34 34 34 34 30 30 30 24 30 30 30 22 25 25 28 11 12 30 30 Average Speed 50 | 154 151 155 180 149 43 34 34 34 34 34 39 34 34 31 30 32 30 30 30 30 28 30 30 28 27 18 30 30 Slowest Speed 385 | 160 240 155 320 320 250 89 34 34 34 34 385 34 34 34 30 172 90 30 30 30 30 166 91 103 102 185 30 30 Overloaded Moves 506 | . . . . . . . . . . . . . . . . . 12 . . . 12 207 95 . 159 21 . . Propulsion Burnouts . | . . . . . . . . . . . . . . . . . . . . . . . . . . . . . Robots Hopped 72 | . . . . . 2 12 . . . . 2 . . 1 1 2 2 . . 11 15 2 . 9 9 4 . . Potential Cave-ins 10 | . . . . . . . . . . . . . . . . . . . . . . . . . . . 4 6 Cave-ins Triggered 1 | . . . . . . . . . . . . . . . . . . . . . . 1 . . . . . . Teleports 78 | . . . . . . . . . . . . . . . . . . . . . . . . . . 41 11 26 Exploration Rate (%) 59 | 4 98 19 77 93 82 33 78 62 74 51 24 76 73 93 59 16 77 70 83 31 57 51 96 52 82 77 12 31 Regions Visited 28 Branch Regions 20 Pre-discovered Areas 21 | . 3 . 4 2 6 2 . . 1 . . . . 1 1 . . . . . 1 . . . . . . . Known Exits Taken 26 | . 1 1 1 1 1 1 1 1 1 1 1 1 1 1 1 1 1 1 1 1 1 1 1 1 1 1 . . Unknown Exits Taken 2 | 1 . . . . . . . . . . . . . . . . . . . . . . . . . . 1 . Scrap Searched 8 | . . . . . . . 2 1 . . . 4 1 . . . . . . . . . . . . . . . Spaces Dug 118 | . . . 2 4 8 10 1 3 . 3 14 1 5 . 2 2 . . . 1 26 13 . 7 4 5 2 5 Terrain Destroyed 503 | . 56 . 109 57 8 10 1 43 . 3 14 1 5 . 2 2 . . . 1 26 13 . 7 4 5 2 134 Melee 111 | . . . . 4 8 10 1 3 . 3 14 1 5 . 2 2 . . . 1 26 13 . 7 4 5 2 . Projectile 152 | . . . 18 . . . . . . . . . . . . . . . . . . . . . . . . 134 AOE 240 | . 56 . 91 53 . . . 40 . . . . . . . . . . . . . . . . . . . . Terrain Rammed . | . . . . . . . . . . . . . . . . . . . . . . . . . . . . . Walls Destroyed . | . . . . . . . . . . . . . . . . . . . . . . . . . . . . . Machines Disabled . | . . . . . . . . . . . . . . . . . . . . . . . . . . . . . Actions | -11 -10 -10 -8 -8 -8 -6 -6 -6 -6 -5 -5 -5 -5 -5 -4 -4 -4 -4 -4 -4 -3 -3 -3 -2 -2 -2 -1 -1 --------- Run | Yrd Mat Sub Mat Sto Rec Fac Low Low Dat Pro Fac Upp Upp War Pro Fac Ext Cet Arc Hub Res Arm Lab Res Tes Sec Acc Com Total 23650 | 76 1035 392 1340 825 1429 938 668 369 107 269 1102 629 571 834 345 707 1243 597 176 301 2212 704 304 2589 896 1854 339 799 Wait 3245 | . 31 1 87 153 564 17 192 13 . 14 369 29 12 8 2 10 285 246 98 47 48 109 83 498 100 149 19 61 Move 18733 | 60 875 363 1043 522 831 843 469 352 107 252 685 582 540 802 340 678 765 342 70 205 2051 556 191 2000 732 1543 291 643 Hop 55 | . . . . . 1 9 . . . . 2 . . 1 1 2 2 . . 7 10 2 . 5 9 4 . . Pick Up 120 | 5 15 5 17 9 3 6 1 . . . 1 . . 2 . 2 2 1 . 1 6 1 2 8 4 21 3 5 Fast Attach 132 | 7 1 . 17 6 2 14 . . . . 10 2 . 3 . 3 4 . . . 9 2 9 8 9 20 5 1 Attach 41 | . 1 1 5 3 3 3 . . . . 1 . . . . . 2 . . . 1 3 1 1 4 7 3 2 Detach 33 | . . . 1 1 1 3 . . . . 1 1 . . . 1 2 . . . 3 1 4 . 2 7 4 1 Swap 201 | . 11 3 18 21 3 4 2 . . . 2 1 2 11 . 2 11 3 3 2 19 8 1 26 8 24 8 8 Drop 181 | . 5 7 20 9 13 14 1 . . . 5 1 2 7 . 4 5 2 . 1 14 2 6 17 7 31 4 4 Fire 383 | 2 96 12 119 85 . . . 1 . . . . . . . . . . . . . . . 1 . 5 . 62 Melee 329 | . . . 9 7 8 25 3 3 . 3 26 13 15 . 2 5 30 3 5 2 51 20 7 25 21 43 2 1 Ram 1 | . . . . 1 . . . . . . . . . . . . . . . . . . . . . . . . Kick 2 | . . . . . . . . . . . . . . . . . . . . . . . . . . . . 2 Crush 7 | 2 . . 4 1 . . . . . . . . . . . . . . . . . . . . . . . . Escape Stasis 99 | . . . . . . . . . . . . . . . . . 54 . . 36 . . . . . . . 9 Rewire 81 | . . . . . . . . . . . . . . . . . 81 . . . . . . . . . . . Trap . | . . . . . . . . . . . . . . . . . . . . . . . . . . . . . Miscellaneous 7 | . . . . 7 . . . . . . . . . . . . . . . . . . . . . . . . Route ------- -11/Scrapyard -10/Materials (discovered 5 exits: [*Mat x3] / [*Min] / *Sub) -10/Subcaves (discovered 2 exits: *Mat x2) -8/Materials (discovered 4 exits: *Fac x3 / *Sto) -8/Storage (discovered 2 exits: *Fac / *Rec) -8/Recycling -6/Factory (discovered 3 exits: *Fac / *Low x2) -6/Lower Caves -6/Lower Caves (discovered 2 exits: *Fac / *Dat) -6/Data Miner -5/Proximity Caves -5/Factory -5/Upper Caves -5/Upper Caves (discovered 2 exits: *Fac / *War) -5/Warlord -4/Proximity Caves -4/Factory (discovered 5 exits: Res / Upp x2 / *Ext x2) -4/Extension (discovered 2 exits: *Res / *Cet) -4/Cetus (discovered 2 exits: *Res / *Arc) -4/Archives (discovered 3 exits: *Res / *Hub x2) -4/Hub_04(d) (discovered 4 exits: *Res x4) -3/Research (discovered 6 exits: *Res x3 / *Arm / Qua x2) -3/Armory (discovered 3 exits: *Res x2 / *Lab) -3/Lab -2/Research (discovered 3 exits: *Acc / *Tes x2) -2/Testing (discovered 3 exits: *Acc / *Sec / [*Frg]) -2/Section 7 -1/Access -1/Command (discovered 2 exits: [*Sur x2]) To Fleet Rendezvous History --------- Turn | Location | Event 16 | -11/Scrapyard | Discovered new exit (range 15) 119 | -11/Scrapyard | Entered Materials 309 | -10/Materials | Build established: Mutant 600 | -10/Materials | Discovered new exit (range 9) 642 | -10/Materials | Discovered new exit (range 15) 762 | -10/Materials | Discovered new exit (range 12) 832 | -10/Materials | Discovered new exit (range 14) 1021 | -10/Materials | Discovered new exit (range 11) 1291 | -10/Materials | Learned location of Subcaves (-10) 1359 | -10/Materials | Learned location of 2 exits from Subcaves 1467 | -10/Materials | Identified exit to Subcaves 1586 | -10/Materials | Learned location of 1 exit from Recycling 1674 | -10/Materials | Learned Storage emergency access door positions 1731 | -10/Materials | Learned Storage trap positions 1735 | -10/Materials | Entered Subcaves 1736 | -10/Subcaves | Approached by a straggling Scientist 1736 | -10/Subcaves | Identified exit to Materials 2162 | -10/Subcaves | Visited 4L-MR0's lab 2179 | -10/Subcaves | Found Flightbrick 2350 | -10/Subcaves | Entered Materials 2350 | -8/Materials | Evolved 4 slots: Propulsion x2, Utility x2 2361 | -8/Materials | Discovered new exit (range 5) 3013 | -8/Materials | Identified exit to Storage 3321 | -8/Materials | Found Prototype Launcher 3321 | -8/Materials | Identified Rocket Array 3438 | -8/Materials | Discovered new exit (range 10) 3454 | -8/Materials | Identified exit to Factory 3776 | -8/Materials | Discovered exit to Factory (range 14) 3807 | -8/Materials | Lost 4 parts (1p1n1u1w) 3842 | -8/Materials | Core integrity fell below 50% 3875 | -8/Materials | Lost 3 parts (2n1w) 4426 | -8/Materials | Build established: Scavenger-Mutant 4512 | -8/Materials | Learned location of Lower Caves (-6) 4519 | -8/Materials | Learned location of Lower Caves (-6) 4575 | -8/Materials | Learned 8 Factory zone layouts 4614 | -8/Materials | Learned 8 Factory zone layouts 4775 | -8/Materials | Entered Storage 4777 | -8/Storage | Loaded intel: 12 trap records 4982 | -8/Storage | Build established: Mutant 5236 | -8/Storage | Assisted by bots powering up and referring to "LRC-V3" 5349 | -8/Storage | Lost 4 allies 5491 | -8/Storage | Core integrity fell below 20% 5575 | -8/Storage | First assault squad dispatched 5656 | -8/Storage | Lost 3 allies 5702 | -8/Storage | Garrison activated, responded to threat 5854 | -8/Storage | Lost 3 allies 5861 | -8/Storage | Lost 4 parts (1p2n1u) 5871 | -8/Storage | Attached Flightbrick, gained temporary slots: Utility x3 5894 | -8/Storage | Destroyed 11 combat bots 5978 | -8/Storage | Used back door to open Recycling access 5978 | -8/Storage | Discovered new exit (range 3) 5980 | -8/Storage | Identified exit to Recycling 5981 | -8/Storage | Entered Recycling 5982 | -8/Recycling | Identified exit to Factory 6319 | -8/Recycling | Build established: Hacker-Mutant 6945 | -8/Recycling | Entered Factory 6945 | -6/Factory | Evolved 4 slots: Power x1, Propulsion x1, Utility x2 7069 | -6/Factory | Found Prototype Processor 7069 | -6/Factory | Identified Exp. Targeting Computer 7201 | -6/Factory | Identified exit to Lower Caves 7250 | -6/Factory | Build established: Hacker-Scout 7295 | -6/Factory | Search patrols dispatched 7303 | -6/Factory | Discovered new exit (range 14) 7308 | -6/Factory | Identified exit to Factory 7311 | -6/Factory | Found Unknown Device 7311 | -6/Factory | Identified Launcher Loader 7363 | -6/Factory | Entered Lower Caves 7379 | -6/Lower Caves | Learned Factory security intel 7593 | -6/Lower Caves | Ambushed by wild Derelicts 7696 | -6/Lower Caves | Encountered a Warlord checkpoint 7717 | -6/Lower Caves | Discovered new exit (range 13) 7727 | -6/Lower Caves | Identified exit to Lower Caves 7727 | -6/Lower Caves | Entered another Lower Caves area 7727 | -6/Lower Caves | Discovered exit to Factory (range 8) 7737 | -6/Lower Caves | Build established: Hacker-Ninja 7867 | -6/Lower Caves | Discovered new exit (range 10) 7870 | -6/Lower Caves | Identified exit to Data Miner 7871 | -6/Lower Caves | Entered Data Miner 7871 | -6/Data Miner | Discovered new exit (range 6) 7878 | -6/Data Miner | Met Data Miner 7886 | -6/Data Miner | Learned location of Section 7 (-2) 7886 | -6/Data Miner | Acquired the access code to Warlord's prototype stash 7891 | -6/Data Miner | Received God Mode back door access code from Data Miner 7908 | -6/Data Miner | Identified exit to Proximity Caves 7908 | -6/Data Miner | Entered Proximity Caves 7949 | -5/Proximity Caves | Learned Factory emergency access door positions 8008 | -5/Proximity Caves | Attracted the attention of an 0b10 checkpoint 8013 | -5/Proximity Caves | Discovered exit to Factory (range 9) 8016 | -5/Proximity Caves | Entered Factory 8016 | -5/Factory | Evolved 2 slots: Propulsion x1, Utility x1 8017 | -5/Factory | Identified exit to Upper Caves 8335 | -5/Factory | Repaired Imp. VTOL Module 8745 | -5/Factory | Entered Upper Caves 8867 | -5/Upper Caves | Learned 8 Factory zone layouts 9000 | -5/Upper Caves | Discovered new exit (range 15) 9004 | -5/Upper Caves | Identified exit to Upper Caves 9012 | -5/Upper Caves | Entered another Upper Caves area 9032 | -5/Upper Caves | Discovered new exit (range 12) 9036 | -5/Upper Caves | Identified exit to Factory 9126 | -5/Upper Caves | Encountered a Warlord checkpoint 9159 | -5/Upper Caves | Learned Factory trap positions 9186 | -5/Upper Caves | Discovered new exit (range 16) 9191 | -5/Upper Caves | Identified exit to Warlord 9251 | -5/Upper Caves | Entered Warlord 9318 | -5/Warlord | Opened Warlord's prototype stash 9320 | -5/Warlord | Found Prototype Device 9320 | -5/Warlord | Identified Thermal Barrier 9409 | -5/Warlord | Received a Watcher feed algorithm from an ecstatic Tinkerer 9409 | -5/Warlord | Ran a Watcher feed algorithm 9419 | -5/Warlord | Found Prototype Device 9419 | -5/Warlord | Identified Minesniffer Drone Bay 9435 | -5/Warlord | Warlord's base attacked by MAIN.C 9451 | -5/Warlord | Learned location of Command (-1) 9451 | -5/Warlord | Learned Research trap positions 9451 | -5/Warlord | Learned 4 Command zone layouts 9452 | -5/Warlord | Learned Research security intel 9452 | -5/Warlord | Learned Armory garrison access intel 9452 | -5/Warlord | Learned Research garrison access intel 9469 | -5/Warlord | Met Warlord 9483 | -5/Warlord | Found Prototype Energy Gun 9483 | -5/Warlord | Identified Vortex Shotgun 9488 | -5/Warlord | Found Prototype Launcher 9488 | -5/Warlord | Identified Vortex Catalyst Activator 9494 | -5/Warlord | Found Vortex Shotgun 9525 | -5/Warlord | Opened side exit 9531 | -5/Warlord | Discovered new exit (range 10) 9534 | -5/Warlord | Identified exit to Proximity Caves 9534 | -5/Warlord | Entered Proximity Caves 9601 | -4/Proximity Caves | Attracted the attention of an 0b10 checkpoint 9642 | -4/Proximity Caves | Discovered exit to Factory (range 7) 9644 | -4/Proximity Caves | Entered Factory 9644 | -4/Factory | Evolved 2 slots: Utility x1, Weapon x1 9645 | -4/Factory | Identified exit to Extension 9646 | -4/Factory | Identified exit to Research 9647 | -4/Factory | Loaded intel: 77 trap records 9756 | -4/Factory | Identified exit to Upper Caves 9896 | -4/Factory | Entered Extension 9907 | -4/Extension | Rescued a captive Derelict 9926 | -4/Extension | Rescued a captive Derelict 10017 | -4/Extension | Rescued a captive Derelict 10019 | -4/Extension | Rescued a captive Derelict 10048 | -4/Extension | Rescued a captive Derelict 10048 | -4/Extension | Rescued a captive Derelict 10064 | -4/Extension | Spotted B-86 Titan 10103 | -4/Extension | Spotted B-86 Titan 10128 | -4/Extension | Rescued a captive Derelict 10128 | -4/Extension | Rescued a captive Derelict 10192 | -4/Extension | Rescued A7 10212 | -4/Extension | Rescued a captive Derelict 10223 | -4/Extension | Rescued a captive Derelict 10277 | -4/Extension | Rescued a captive Derelict 10586 | -4/Extension | Discovered exit to Research (range 10) 10586 | -4/Extension | Discovered new exit (range 6) 10609 | -4/Extension | Identified exit to Cetus 10643 | -4/Extension | Entered Cetus 10643 | -4/Cetus | Accompanied by 12 allies (A7) 10648 | -4/Cetus | Acquired a Cetus Manufacturing Module code from A7 10648 | -4/Cetus | Spotted Cetus Guard 10648 | -4/Cetus | Spotted Cetus Guard 10656 | -4/Cetus | Spotted Cetus Guard 10656 | -4/Cetus | Spotted Cetus Guard 10671 | -4/Cetus | Allies destroyed Cetus Guard 10673 | -4/Cetus | Allies destroyed Cetus Guard 10676 | -4/Cetus | Allies destroyed Cetus Guard 10680 | -4/Cetus | Allies destroyed Cetus Guard 10704 | -4/Cetus | Build established: Commander-Scout 10705 | -4/Cetus | Lost 5 allies 10718 | -4/Cetus | Started Cetus Manufacturing Module 10743 | -4/Cetus | Manufactured an Enhanced Grunt 10768 | -4/Cetus | Manufactured an Enhanced Grunt 10793 | -4/Cetus | Manufactured an Enhanced Grunt 10818 | -4/Cetus | Manufactured an Enhanced Grunt 10843 | -4/Cetus | Manufactured an Enhanced Grunt 10860 | -4/Cetus | Discovered new exit (range 21) 10868 | -4/Cetus | Spotted Cetus Guard 10869 | -4/Cetus | Spotted Cetus Guard 10872 | -4/Cetus | Spotted Cetus Guard 10873 | -4/Cetus | Spotted Cetus Guard 10885 | -4/Cetus | Allies destroyed Cetus Guard 10898 | -4/Cetus | Discovered exit to Research (range 22) 10901 | -4/Cetus | Allies destroyed Cetus Guard 10904 | -4/Cetus | Allies destroyed Cetus Guard 10905 | -4/Cetus | Allies destroyed Cetus Guard 10911 | -4/Cetus | Met Revision 17 10969 | -4/Cetus | Identified exit to Archives 11005 | -4/Cetus | Entered Archives 11005 | -4/Archives | Accompanied by 12 allies (A7) 11007 | -4/Archives | Murdered A7 11009 | -4/Archives | Extracted ID and sensor layout for unrecognized location from A7's data core 11087 | -4/Archives | Discovered new exit (range 22) 11088 | -4/Archives | Discovered exit to Research (range 22) 11088 | -4/Archives | Discovered new exit (range 18) 11095 | -4/Archives | Identified exit to Hub_04(d) 11139 | -4/Archives | Entered Hub_04(d) 11139 | -4/Hub_04(d) | Accompanied by 10 allies 11227 | -4/Hub_04(d) | Network Hub disabled 11252 | -4/Hub_04(d) | Incoming investigation squad redirected 11259 | -4/Hub_04(d) | Network Hub disabled 11262 | -4/Hub_04(d) | Network Hub disabled 11282 | -4/Hub_04(d) | Incoming investigation squad redirected 11288 | -4/Hub_04(d) | Incoming investigation squad redirected 11300 | -4/Hub_04(d) | Entered Research 11300 | -3/Research | Accompanied by 1 ally 11300 | -3/Research | Evolved 2 slots: Propulsion x1, Utility x1 11301 | -3/Research | Loaded intel: 96 trap records 11303 | -3/Research | Loaded intel: 3 garrison access locations 11319 | -3/Research | Identified exit to Armory 11319 | -3/Research | Identified exit to Quarantine 11319 | -3/Research | Identified exit to Research 11453 | -3/Research | Found Prototype Processor 11453 | -3/Research | Identified Exp. Target Analyzer 11500 | -3/Research | Revision forces began assault on 0b10 11525 | -3/Research | Met up with Revision 17++ 11586 | -3/Research | Fabricated Y-64 Sentinel (x2) 11690 | -3/Research | Found Prototype Processor 11690 | -3/Research | Identified Exp. Melee Analysis Suite 11712 | -3/Research | Build established: Hacker-Ninja 11766 | -3/Research | Found Prototype Processor 11766 | -3/Research | Identified Exp. Signal Interpreter 11781 | -3/Research | Learned Quarantine scanalyzer intel 11836 | -3/Research | Found Prototype Processor 11836 | -3/Research | Identified Spectral Analyzer 12000 | -3/Research | Research terminal network offline 12061 | -3/Research | Spotted Striker 12139 | -3/Research | Entered Armory 12140 | -3/Armory | Met VL-GR5, who suggested a friendly competition 12384 | -3/Armory | Lost the competition with VL-GR5 12393 | -3/Armory | Crushed by falling debris 12393 | -3/Armory | System corruption reached 10% 12461 | -3/Armory | Lost 6 parts (2p1n2u1w) 12492 | -3/Armory | Discovered new exit (range 4) 12495 | -3/Armory | Identified exit to Lab 12499 | -3/Armory | Entered Lab 12499 | -3/Lab | Discovered exit to Research (range 9) 12508 | -3/Lab | Hidden lab's door opened automatically 12508 | -3/Lab | Sensor layout match revealed 12509 | -3/Lab | Gained access to the hidden lab's interior 12539 | -3/Lab | Found Alien Artifact 12539 | -3/Lab | Identified Core Expander 12539 | -3/Lab | Installed Core Expander, added new Power slot 12596 | -3/Lab | Found Alien Artifact 12602 | -3/Lab | Found Alien Artifact 12612 | -3/Lab | Found Alien Artifact 12612 | -3/Lab | Identified Integrated Mediator 12612 | -3/Lab | Installed Integrated Mediator, increased core attachment efficiency 12621 | -3/Lab | Found Prototype Hackware 12621 | -3/Lab | Identified Quantum Router 12627 | -3/Lab | Found Prototype Protection 12627 | -3/Lab | Identified Med. Regenerative Plating 12632 | -3/Lab | Found Prototype Energy Cannon 12632 | -3/Lab | Identified Potential Cannon 12635 | -3/Lab | Found Prototype Energy Cannon 12635 | -3/Lab | Identified Warp Cannon 12682 | -3/Lab | Entered Research 12682 | -2/Research | Warlord forces began assault on 0b10 12682 | -2/Research | Evolved 2 slots: Utility x2 12683 | -2/Research | Identified exit to Access 12792 | -2/Research | Research machine network offline 12800 | -2/Research | Spotted B-90 Cyclops 12926 | -2/Research | Met up with Warlord 13126 | -2/Research | Borebot progress halted 13159 | -2/Research | Borebot progress halted 13173 | -2/Research | Discovered new exit (range 13) 13176 | -2/Research | Identified exit to Testing 13266 | -2/Research | Spotted Executioner 13303 | -2/Research | Borebot progress halted 13395 | -2/Research | Spotted Striker 13396 | -2/Research | Build established: Infiltrator-Ninja 13408 | -2/Research | Discovered exit to Testing (range 22) 13439 | -2/Research | Spotted Striker 13442 | -2/Research | Spotted Executioner 13458 | -2/Research | Found Prototype Processor 13458 | -2/Research | Identified Exp. Core Analyzer 13536 | -2/Research | Spotted Executioner 13545 | -2/Research | Met DD-05H 13682 | -2/Research | Warlord invited to help at Command 13682 | -2/Research | Given Cave Seal Controls access code 13683 | -2/Research | Spotted Striker 13712 | -2/Research | Spotted Executioner 13712 | -2/Research | Spotted Striker 13730 | -2/Research | Took control of God Mode 13730 | -2/Research | Attacked by Warlord forces 13757 | -2/Research | Build established: Scavenger-Ninja 13759 | -2/Research | Spotted UA-VWX(D) 13776 | -2/Research | Allies destroyed UA-VWX(D) 13800 | -2/Research | Spotted UR-O5O(K) 13808 | -2/Research | Lost 3 allies 13831 | -2/Research | Spotted Striker 13848 | -2/Research | Allies destroyed Striker 13852 | -2/Research | Attacked by Warlord 13872 | -2/Research | Allies destroyed Warlord 13874 | -2/Research | Warlord destroyed during the assault 13879 | -2/Research | Spotted YY-RWX(D) 13896 | -2/Research | Entered Testing 13896 | -2/Testing | Accompanied by 1 ally (God Mode) 13908 | -2/Testing | Found Prototype Energy Cannon 13908 | -2/Testing | Identified Imp. Potential Cannon 13926 | -2/Testing | Found Prototype Energy Gun 13926 | -2/Testing | Identified Warp Gun 13959 | -2/Testing | Found Prototype Energy Cannon 13959 | -2/Testing | Identified Disintegrator 14034 | -2/Testing | Discovered exit to Access (range 8) 14162 | -2/Testing | Spotted Striker 14203 | -2/Testing | Found Exp. Signal Interpreter 14212 | -2/Testing | Spotted PD-15KTJSUQUR 14216 | -2/Testing | Found Prototype Device 14216 | -2/Testing | Identified Exp. Hardlight Generator 14253 | -2/Testing | Spotted Fortress 14286 | -2/Testing | Discovered new exit (range 5) 14286 | -2/Testing | Discovered new exit (range 6) 14287 | -2/Testing | Identified exit to Section 7 14287 | -2/Testing | Entered Section 7 14289 | -2/Section 7 | Identified Core Reset Matrix 14289 | -2/Section 7 | Identified Transdimensional Reconstructor 14289 | -2/Section 7 | Used Core Reset Matrix 14293 | -2/Section 7 | Detected hypermatrix surge 14293 | -2/Section 7 | Sensed 24 artifacts in vicinity 14480 | -2/Section 7 | Central database locked down 14484 | -2/Section 7 | Local machine network offline 14503 | -2/Section 7 | Discovered exit to Access (range 12) 14531 | -2/Section 7 | Lost 4 allies 14542 | -2/Section 7 | Spotted S7 Guard 14554 | -2/Section 7 | Found Navigation Efficiency Matrix 14554 | -2/Section 7 | Installed Navigation Efficiency Matrix, process failed with unexpected side effects 14564 | -2/Section 7 | Spotted S7 Guard 14613 | -2/Section 7 | Spotted Executioner 14613 | -2/Section 7 | Spotted Executioner 14618 | -2/Section 7 | Spotted B-99 Colossus 14646 | -2/Section 7 | Found LRC Energy Well 14649 | -2/Section 7 | Found LRC Armor 14651 | -2/Section 7 | Found LRC Storage 14664 | -2/Section 7 | Found Integrated Dissipator 14664 | -2/Section 7 | Installed Integrated Dissipator, increased core heat dissipation (+20) 14666 | -2/Section 7 | Found Integrated Dissipator 14666 | -2/Section 7 | Installed Integrated Dissipator, increased core heat dissipation (+20) 14667 | -2/Section 7 | Found Integrated Dissipator 14667 | -2/Section 7 | Installed Integrated Dissipator, increased core heat dissipation (+20) 14677 | -2/Section 7 | Found Integrated Dissipator 14677 | -2/Section 7 | Installed Integrated Dissipator, increased core heat dissipation (+20) 14710 | -2/Section 7 | Found Matter Drive 14718 | -2/Section 7 | Found Terrabomb 14720 | -2/Section 7 | Found Terrabomb 14722 | -2/Section 7 | Found Transdimensional Reconstructor 14743 | -2/Section 7 | Spotted Striker 14743 | -2/Section 7 | Spotted Striker 14793 | -2/Section 7 | Found Sigix Sheargun 14795 | -2/Section 7 | Spotted Striker 14795 | -2/Section 7 | Spotted Striker 14796 | -2/Section 7 | Found Sigix Sheargun 14807 | -2/Section 7 | Spotted Executioner 14807 | -2/Section 7 | Spotted Executioner 14832 | -2/Section 7 | Integrated with Sigix Exoskeleton 14835 | -2/Section 7 | Installed LRC Energy Well, increased energy storage capacity (+250) 14837 | -2/Section 7 | Installed LRC Storage, increased inventory capacity (+2) 14839 | -2/Section 7 | Installed LRC Armor, increased core integrity (+250) 14890 | -2/Section 7 | Found Transdimensional Reconstructor 14895 | -2/Section 7 | Found Terrabomb 14975 | -2/Section 7 | Entered Access 14975 | -1/Access | Evolved 2 slots: Weapon x2 14980 | -1/Access | Emitted hypermatrix ping 14985 | -1/Access | Assembled emerged from beneath the floor 15094 | -1/Access | Discovered new exit (range 18) 15116 | -1/Access | Entered Command 15121 | -1/Command | Build established: Alien-Sigix 15121 | -1/Command | Emitted hypermatrix ping 15126 | -1/Command | Assembled emerged from beneath the floor 15160 | -1/Command | Discovered new exit (range 15) 15162 | -1/Command | Spotted B-99 Colossus 15177 | -1/Command | Spotted Executioner 15177 | -1/Command | Spotted Executioner 15177 | -1/Command | Spotted Striker 15177 | -1/Command | Spotted Alpha 7 15177 | -1/Command | Spotted B-99 Colossus 15177 | -1/Command | Failed to warp due to unstable space 15178 | -1/Command | Spotted Executioner 15179 | -1/Command | Spotted Executioner 15179 | -1/Command | Spotted Striker 15181 | -1/Command | Spotted Alpha 7 15211 | -1/Command | Destroyed Striker 15211 | -1/Command | Destroyed Executioner 15217 | -1/Command | Destroyed Executioner 15219 | -1/Command | Destroyed Executioner 15225 | -1/Command | Destroyed Alpha 7 15226 | -1/Command | Sigix Exoskeleton integrity reduced to 80% 15228 | -1/Command | Destroyed Alpha 7 15230 | -1/Command | Destroyed Striker 15236 | -1/Command | Destroyed Executioner 15248 | -1/Command | Found Exp. Core Analyzer 15267 | -1/Command | Found Prototype Processor 15267 | -1/Command | Identified Exp. Targeting Computer 15276 | -1/Command | Found Exp. Targeting Computer 15277 | -1/Command | Found Exp. Core Analyzer 15278 | -1/Command | Destroyed 15 combat bots 15284 | -1/Command | Found Exp. Core Analyzer 15310 | -1/Command | Assembled emerged from beneath the floor 15371 | -1/Command | Assembled emerged from beneath the floor 15429 | -1/Command | Spotted Combat Programmer 15435 | -1/Command | Spotted M Guard 15435 | -1/Command | Spotted M Guard 15435 | -1/Command | Spotted Combat Programmer 15457 | -1/Command | Met MAIN.C 15457 | -1/Command | 0b10 Conduit disabled 15477 | -1/Command | Sigix Exoskeleton integrity reduced to 60% 15479 | -1/Command | MAIN.C's shell transforms into a squad of autonomous robots 15479 | -1/Command | Destroyed MAIN.C Shell 15479 | -1/Command | Spotted M Shell/Atk 15479 | -1/Command | Spotted M Shell/Def 15479 | -1/Command | Spotted M Shell/Atk 15479 | -1/Command | Spotted M Shell/Def 15479 | -1/Command | Spotted M Shell/Atk 15480 | -1/Command | Spotted M Shell/Def 15482 | -1/Command | MAIN.C activated Command garrisons 15482 | -1/Command | Spotted M Shell/Atk 15483 | -1/Command | Discovered new exit (range 18) 15486 | -1/Command | Core integrity fell below 50% 15510 | -1/Command | Sigix Exoskeleton integrity reduced to 40% 15531 | -1/Command | Destroyed 7 combat bots 15552 | -1/Command | Sigix Exoskeleton integrity reduced to 20% 15567 | -1/Command | Core integrity fell below 20% 15568 | -1/Command | Spotted M Shell/Def 15568 | *** | Heading to fleet! Last Messages --------------- 15527_ Navigation matrix triggers involuntary quantum shift. 15545_ Quantum Shear penetrates MAIN.C. 15550_ Quantum Shear penetrates Wall. 15550_ Quantum Shear penetrates MAIN.C. 15552_ Exo-853F: "Integrity reduced to 20%, immediate ERK application recommended to prevent critical system failure." 15553_ Quantum Shear penetrates MAIN.C. 15553_ Destroyed Prototype Device. 15556_ Quantum Shear penetrates Wall. 15560_ Quantum Shear penetrates S-43 Plague. 15560_ S-43 Plague destroyed. 15562_ System corrupted: Sigix Sheargun failed to cycle. 15563_ Quantum Shear penetrates S-43 Plague. 15563_ S-43 Plague destroyed. 15565_ Quantum Shear penetrates MAIN.C. 15565_ Destroyed Prototype Device. 15565_ Quantum Shear penetrates MAIN.C. 15568_ K-01 Serf collects debris. 15568_ Sigix Sheargun blasted off. 15568_ Sigix Sheargun crushed and broken. Map ----- +----------------------------------------------------+ | ??????????????????????????????? ?????????????##### | | ?????????????????????????? # #####???????###### | | ???????????????????????##+### ########????###### | | ?????????????????????? #########?######## | | ???????????????????? ## ################ | | ???????????????????# ### ################ | | ?????????????????### ### ################ | | ???????????????? ## ### ################ | | ??????????????? # ## #########""""""" | | ?????????????? + ###Y##"# #########"" | | ????????????? # ] ### ## # #########""""" | | ???????????? ## #### ## # #########""""""" | | ???????????# ## #### ## # #########" " | | ??????????####+##### #### ## # #########"" """ | | ??????????#### ##### #### ## # #########"" """ | | ?????????##### ##### ####+##"# ;######## " """ | | ????????###### ##### ## + ######### " | | ????????###### ##### ## # ######### " | | ????????######+#####+## i # i #########"""" "" | | ???????##### ## /YYi #########"" | | ???????##### = ## %m ;###i######### | | ???????##### ## %=Y;### ######### | | ???????##### #####==*# ## ######### | | ???????##### ######=### # ##### | | ??????###### ###!%MY# ### ##### " | | ???????##### ###=Xs%# ### k k% " | | ???????##### ###=%[[# ### ######""" """ | | ???????##### ! #####=[#*###%####### " " "" | | ???????##### ####=%=* ### #########% "" | | ???????##### * #####kk;|###%################ | | ????????#### ##### ;;;##%################ | | ????????#### ##### % =% ################ | | ????????#### ##### ################# | | ?????????###[ ##### ;################ | | ??????????## ##### # ############ | | ?????????? ####+########## ; ############ | | ??????????? + + ! =# ############ | | ???????????? ### # ; ############ | | ???????????? #### # " ############ | | ????????????!!!#### # ###"+################# | | ?????????????!!#### # # ############# | | ??????????????!#### # # ############# | | ?????????????? # ######## # ############# | | ???????????????# ######## # !!= ############? | | ???????????????? # !!= ########????? | | ????????????????? # != ######??????? | | ??????????????????? # #####???????? | | ???????????????????? # ###?????????? | | ??????????????????????? "" # ????????????? | | ????????????????????????????#?? ?????????????????? | +----------------------------------------------------+ Best States ------------- Heat Dissipation 207 Energy Generation 72 Energy Capacity 450 Matter Stores 300 Matter Capacity 300 Sight Range 24 Robot Scan Range 18 Terrain Scan Density 10 ECM Strength 2 Jamming Range 16 Cloak Strength 4 Power Amplification 40 Additional Mass Support 12 Armor Coverage 375 Resistance: KI 50 Resistance: TH 50 Resistance: EX 50 Resistance: EM 50 Resistance: I 50 Resistance: S 50 Resistance: P 50 Propulsion Shielding 66 Melee Speed Boost 30 Evasion (%) 79 Targeting Accuracy 12 Melee Accuracy 12 Target Analysis 10 Core Analysis 8 Armor Integrity Analysis 40 Recoil Reduction 4 Matter Filtering 30 Particle Charging 30 Offensive Hacking 24 Defensive Hacking 35 Authchip Count 1 Item Schematics ----------------- None Robot Schematics ------------------ None Fabricated ------------ Y-64 Sentinel | x2 | -3/Research | Preloaded Repaired ---------- Imp. VTOL Module | 62% | -5/Factory Alien Tech Used ----------------- Core Expander Integrated Mediator Core Reset Matrix Navigation Efficiency Matrix Integrated Dissipator Sigix Exoskeleton Sigix Sheargun LRC Energy Well LRC Storage LRC Armor Matter Drive Transdimensional Reconstructor Achievements -------------- Godhack Challenges ------------ None Game ------ Seed MyomerAmuletFilter Manual? 0 Play Time 05:49:50 Cumulative 212.4 hours Start 2025.07.28 @ 16:46:02 End 2025.07.29 @ 03:39:31 Sessions 3 Manual Loads 0 Difficulty Rogue Special Mode None Game No. 219 Rogue 219 Adventurer 0 Explorer 0 Win Type 2 Total 5 Types 1/0/2/1/0/0/0/0/0/1 Lore% 72 Gallery% 68 Achievement% 62 Wizard Run 0 Options --------- Layout 1 ASCII 0 Keyboard 1 Movement Numpad Keybinds 0 Fullscreen 1 Font 32/SmallcapsGlow Map View 77x35 Zoom Use 0% Tactical HUD 1 Map Filters NONE Filters NONE Steam 1 RUN: 8249cccc-2b5f-4826-97ad-0ec06c8dadb1